{"text_format":"3","workbook":"xlsx","n_sheets":4,"sheets":["YB BÜTÇE ÖZETİ","AYLIK GİDERLER ÖZETİ","GİDER DÖKÜMÜ","HAYIR İŞLERİ VE SPONSORLUKLAR"],"not_rendered":{"images":1,"defined_names":15},"read":"whole","date_system":"1900"}

{"sheet":"YB BÜTÇE ÖZETİ","index":0,"n_rows":16,"n_cols":7,"rows_kept":16,"merged":[[1,1,1,4]]}
[]
[null,"FİİLİ - BÜTÇE YB",{"$nulls":3},"YIL",{"$f":"YEAR(TODAY())","v":2019}]
[null,"GM Kodu","Hesap Başlığı","Fiili","Bütçe","Kalan TL","Kalan %"]
[null,1000,"Reklam",{"$f":"SUMIF(AylıkGiderlerÖzeti[GM Kodu],YılbaşındanBugüneTablosu[[#This Row],[GM Kodu]],AylıkGiderlerÖzeti[Toplam])","v":{"v":0,"d":"0.00 ₺"}},{"v":100000,"d":"100,000.00 ₺"},{"$f":"IF(YılbaşındanBugüneTablosu[[#This Row],[Bütçe]]=\"\",\"\",YılbaşındanBugüneTablosu[[#This Row],[Bütçe]]-YılbaşındanBugüneTablosu[[#This Row],[Fiili]])","v":{"v":100000,"d":"100,000.00 ₺"}},{"$f":"IFERROR(YılbaşındanBugüneTablosu[[#This Row],[Kalan TL]]/YılbaşındanBugüneTablosu[[#This Row],[Bütçe]],\"\")","v":{"v":1,"d":"100.00%"}}]
[null,2000,"Ofis Ekipmanları",{"$f":"SUMIF(AylıkGiderlerÖzeti[GM Kodu],YılbaşındanBugüneTablosu[[#This Row],[GM Kodu]],AylıkGiderlerÖzeti[Toplam])","v":{"v":0,"d":"0.00 ₺"}},{"v":100000,"d":"100,000.00 ₺"},{"$f":"IF(YılbaşındanBugüneTablosu[[#This Row],[Bütçe]]=\"\",\"\",YılbaşındanBugüneTablosu[[#This Row],[Bütçe]]-YılbaşındanBugüneTablosu[[#This Row],[Fiili]])","v":{"v":100000,"d":"100,000.00 ₺"}},{"$f":"IFERROR(YılbaşındanBugüneTablosu[[#This Row],[Kalan TL]]/YılbaşındanBugüneTablosu[[#This Row],[Bütçe]],\"\")","v":{"v":1,"d":"100.00%"}}]
[null,3000,"Yazıcılar",{"$f":"SUMIF(AylıkGiderlerÖzeti[GM Kodu],YılbaşındanBugüneTablosu[[#This Row],[GM Kodu]],AylıkGiderlerÖzeti[Toplam])","v":{"v":0,"d":"0.00 ₺"}},{"v":100000,"d":"100,000.00 ₺"},{"$f":"IF(YılbaşındanBugüneTablosu[[#This Row],[Bütçe]]=\"\",\"\",YılbaşındanBugüneTablosu[[#This Row],[Bütçe]]-YılbaşındanBugüneTablosu[[#This Row],[Fiili]])","v":{"v":100000,"d":"100,000.00 ₺"}},{"$f":"IFERROR(YılbaşındanBugüneTablosu[[#This Row],[Kalan TL]]/YılbaşındanBugüneTablosu[[#This Row],[Bütçe]],\"\")","v":{"v":1,"d":"100.00%"}}]
[null,4000,"Sunucu Maliyetleri",{"$f":"SUMIF(AylıkGiderlerÖzeti[GM Kodu],YılbaşındanBugüneTablosu[[#This Row],[GM Kodu]],AylıkGiderlerÖzeti[Toplam])","v":{"v":0,"d":"0.00 ₺"}},{"v":100000,"d":"100,000.00 ₺"},{"$f":"IF(YılbaşındanBugüneTablosu[[#This Row],[Bütçe]]=\"\",\"\",YılbaşındanBugüneTablosu[[#This Row],[Bütçe]]-YılbaşındanBugüneTablosu[[#This Row],[Fiili]])","v":{"v":100000,"d":"100,000.00 ₺"}},{"$f":"IFERROR(YılbaşındanBugüneTablosu[[#This Row],[Kalan TL]]/YılbaşındanBugüneTablosu[[#This Row],[Bütçe]],\"\")","v":{"v":1,"d":"100.00%"}}]
[null,5000,"Diğer Malzemeler",{"$f":"SUMIF(AylıkGiderlerÖzeti[GM Kodu],YılbaşındanBugüneTablosu[[#This Row],[GM Kodu]],AylıkGiderlerÖzeti[Toplam])","v":{"v":0,"d":"0.00 ₺"}},{"v":50000,"d":"50,000.00 ₺"},{"$f":"IF(YılbaşındanBugüneTablosu[[#This Row],[Bütçe]]=\"\",\"\",YılbaşındanBugüneTablosu[[#This Row],[Bütçe]]-YılbaşındanBugüneTablosu[[#This Row],[Fiili]])","v":{"v":50000,"d":"50,000.00 ₺"}},{"$f":"IFERROR(YılbaşındanBugüneTablosu[[#This Row],[Kalan TL]]/YılbaşındanBugüneTablosu[[#This Row],[Bütçe]],\"\")","v":{"v":1,"d":"100.00%"}}]
[null,6000,"Müşteri Giderleri",{"$f":"SUMIF(AylıkGiderlerÖzeti[GM Kodu],YılbaşındanBugüneTablosu[[#This Row],[GM Kodu]],AylıkGiderlerÖzeti[Toplam])","v":{"v":0,"d":"0.00 ₺"}},{"v":25000,"d":"25,000.00 ₺"},{"$f":"IF(YılbaşındanBugüneTablosu[[#This Row],[Bütçe]]=\"\",\"\",YılbaşındanBugüneTablosu[[#This Row],[Bütçe]]-YılbaşındanBugüneTablosu[[#This Row],[Fiili]])","v":{"v":25000,"d":"25,000.00 ₺"}},{"$f":"IFERROR(YılbaşındanBugüneTablosu[[#This Row],[Kalan TL]]/YılbaşındanBugüneTablosu[[#This Row],[Bütçe]],\"\")","v":{"v":1,"d":"100.00%"}}]
[null,7000,"Bilgisayarlar",{"$f":"SUMIF(AylıkGiderlerÖzeti[GM Kodu],YılbaşındanBugüneTablosu[[#This Row],[GM Kodu]],AylıkGiderlerÖzeti[Toplam])","v":{"v":0,"d":"0.00 ₺"}},{"v":75000,"d":"75,000.00 ₺"},{"$f":"IF(YılbaşındanBugüneTablosu[[#This Row],[Bütçe]]=\"\",\"\",YılbaşındanBugüneTablosu[[#This Row],[Bütçe]]-YılbaşındanBugüneTablosu[[#This Row],[Fiili]])","v":{"v":75000,"d":"75,000.00 ₺"}},{"$f":"IFERROR(YılbaşındanBugüneTablosu[[#This Row],[Kalan TL]]/YılbaşındanBugüneTablosu[[#This Row],[Bütçe]],\"\")","v":{"v":1,"d":"100.00%"}}]
[null,8000,"Sağlık Planı",{"$f":"SUMIF(AylıkGiderlerÖzeti[GM Kodu],YılbaşındanBugüneTablosu[[#This Row],[GM Kodu]],AylıkGiderlerÖzeti[Toplam])","v":{"v":0,"d":"0.00 ₺"}},{"v":65000,"d":"65,000.00 ₺"},{"$f":"IF(YılbaşındanBugüneTablosu[[#This Row],[Bütçe]]=\"\",\"\",YılbaşındanBugüneTablosu[[#This Row],[Bütçe]]-YılbaşındanBugüneTablosu[[#This Row],[Fiili]])","v":{"v":65000,"d":"65,000.00 ₺"}},{"$f":"IFERROR(YılbaşındanBugüneTablosu[[#This Row],[Kalan TL]]/YılbaşındanBugüneTablosu[[#This Row],[Bütçe]],\"\")","v":{"v":1,"d":"100.00%"}}]
[null,9000,"Bina Maliyetleri",{"$f":"SUMIF(AylıkGiderlerÖzeti[GM Kodu],YılbaşındanBugüneTablosu[[#This Row],[GM Kodu]],AylıkGiderlerÖzeti[Toplam])","v":{"v":0,"d":"0.00 ₺"}},{"v":125000,"d":"125,000.00 ₺"},{"$f":"IF(YılbaşındanBugüneTablosu[[#This Row],[Bütçe]]=\"\",\"\",YılbaşındanBugüneTablosu[[#This Row],[Bütçe]]-YılbaşındanBugüneTablosu[[#This Row],[Fiili]])","v":{"v":125000,"d":"125,000.00 ₺"}},{"$f":"IFERROR(YılbaşındanBugüneTablosu[[#This Row],[Kalan TL]]/YılbaşındanBugüneTablosu[[#This Row],[Bütçe]],\"\")","v":{"v":1,"d":"100.00%"}}]
[null,10000,"Pazarlama",{"$f":"SUMIF(AylıkGiderlerÖzeti[GM Kodu],YılbaşındanBugüneTablosu[[#This Row],[GM Kodu]],AylıkGiderlerÖzeti[Toplam])","v":{"v":0,"d":"0.00 ₺"}},{"v":100000,"d":"100,000.00 ₺"},{"$f":"IF(YılbaşındanBugüneTablosu[[#This Row],[Bütçe]]=\"\",\"\",YılbaşındanBugüneTablosu[[#This Row],[Bütçe]]-YılbaşındanBugüneTablosu[[#This Row],[Fiili]])","v":{"v":100000,"d":"100,000.00 ₺"}},{"$f":"IFERROR(YılbaşındanBugüneTablosu[[#This Row],[Kalan TL]]/YılbaşındanBugüneTablosu[[#This Row],[Bütçe]],\"\")","v":{"v":1,"d":"100.00%"}}]
[null,11000,"Hayır İşleri",{"$f":"SUMIF(AylıkGiderlerÖzeti[GM Kodu],YılbaşındanBugüneTablosu[[#This Row],[GM Kodu]],AylıkGiderlerÖzeti[Toplam])","v":{"v":0,"d":"0.00 ₺"}},{"v":250000,"d":"250,000.00 ₺"},{"$f":"IF(YılbaşındanBugüneTablosu[[#This Row],[Bütçe]]=\"\",\"\",YılbaşındanBugüneTablosu[[#This Row],[Bütçe]]-YılbaşındanBugüneTablosu[[#This Row],[Fiili]])","v":{"v":250000,"d":"250,000.00 ₺"}},{"$f":"IFERROR(YılbaşındanBugüneTablosu[[#This Row],[Kalan TL]]/YılbaşındanBugüneTablosu[[#This Row],[Bütçe]],\"\")","v":{"v":1,"d":"100.00%"}}]
[null,12000,"Sponsorluklar",{"$f":"SUMIF(AylıkGiderlerÖzeti[GM Kodu],YılbaşındanBugüneTablosu[[#This Row],[GM Kodu]],AylıkGiderlerÖzeti[Toplam])","v":{"v":0,"d":"0.00 ₺"}},{"v":50000,"d":"50,000.00 ₺"},{"$f":"IF(YılbaşındanBugüneTablosu[[#This Row],[Bütçe]]=\"\",\"\",YılbaşındanBugüneTablosu[[#This Row],[Bütçe]]-YılbaşındanBugüneTablosu[[#This Row],[Fiili]])","v":{"v":50000,"d":"50,000.00 ₺"}},{"$f":"IFERROR(YılbaşındanBugüneTablosu[[#This Row],[Kalan TL]]/YılbaşındanBugüneTablosu[[#This Row],[Bütçe]],\"\")","v":{"v":1,"d":"100.00%"}}]
[null,"Toplam",null,{"$f":"SUBTOTAL(109,YılbaşındanBugüneTablosu[Fiili])","v":{"v":0,"d":"0.00 ₺"}},{"$f":"SUBTOTAL(109,YılbaşındanBugüneTablosu[Bütçe])","v":{"v":1140000,"d":"1,140,000.00 ₺"}},{"$f":"SUBTOTAL(109,YılbaşındanBugüneTablosu[Kalan TL])","v":{"v":1140000,"d":"1,140,000.00 ₺"}},{"$f":"YılbaşındanBugüneTablosu[[#Totals],[Kalan TL]]/YılbaşındanBugüneTablosu[[#Totals],[Bütçe]]","v":{"v":1,"d":"100.00%"}}]

{"sheet":"AYLIK GİDERLER ÖZETİ","index":1,"n_rows":18,"n_cols":17,"rows_kept":18,"merged":[[1,1,1,16]]}
[]
[null,"AYLIK GİDERLER ÖZETİ"]
[null,"Verileri Hesap Başlıklarına göre filtreleyecek dilimleyici bu hücrededir.",null,{"$f":"DATEVALUE(\"1-Oca\"&_YIL)","v":"2019-01-01"},{"$f":"DATEVALUE(\"1-ŞUB\"&_YIL)","v":"2019-02-01"},{"$f":"DATEVALUE(\"1-MAR\"&_YIL)","v":"2019-03-01"},{"$f":"DATEVALUE(\"1-Nis\"&_YIL)","v":"2019-04-01"},{"$f":"DATEVALUE(\"1-MAY\"&_YIL)","v":"2019-05-01"},{"$f":"DATEVALUE(\"1-HAZ\"&_YIL)","v":"2019-06-01"},{"$f":"DATEVALUE(\"1-TEM\"&_YIL)","v":"2019-07-01"},{"$f":"DATEVALUE(\"1-AĞU\"&_YIL)","v":"2019-08-01"},{"$f":"DATEVALUE(\"1-EYL\"&_YIL)","v":"2019-09-01"},{"$f":"DATEVALUE(\"1-Eki\"&_YIL)","v":"2019-10-01"},{"$f":"DATEVALUE(\"1-KAS\"&_YIL)","v":"2019-11-01"},{"$f":"DATEVALUE(\"1-ARA\"&_YIL)","v":"2019-12-01"}]
[{"$nulls":3},{"$f":"EOMONTH(D3,0)","v":"2019-01-31"},{"$f":"EOMONTH(E3,0)","v":"2019-02-28"},{"$f":"EOMONTH(F3,0)","v":"2019-03-31"},{"$f":"EOMONTH(G3,0)","v":"2019-04-30"},{"$f":"EOMONTH(H3,0)","v":"2019-05-31"},{"$f":"EOMONTH(I3,0)","v":"2019-06-30"},"2019-07-31","2019-08-31","2019-09-30","2019-10-31","2019-11-30","2019-12-31"]
[null,"GM Kodu","Hesap Başlığı","Ocak","Şubat","Mart","Nisan","Mayıs","Haziran","Temmuz","Ağustos","Eylül","Ekim","Kasım","Aralık","Toplam"," "]
[null,1000,"Reklam",{"$f":"SUMIFS(GiderlerDökümü[Çek Tutarı],GiderlerDökümü[GM Kodu],AylıkGiderlerÖzeti[[#This Row],[GM Kodu]],GiderlerDökümü[Fatura Tarihi],\">=\"&D$3,GiderlerDökümü[Fatura Tarihi],\"<=\"&D$4)+SUMIFS(Diğer[Çek Tutarı],Diğer[GM Kodu],AylıkGiderlerÖzeti[[#This Row],[GM Kodu]],Diğer[Çek İsteğinin Başlangıç Tarihi],\">=\"&DATEVALUE(\" 1 \"&AylıkGiderlerÖzeti[[#Headers],[Ocak]]&_YIL),Diğer[Çek İsteğinin Başlangıç Tarihi],\"<=\"&D$4)","v":{"v":0,"d":"0.00 ₺"}},{"$f":"SUMIFS(GiderlerDökümü[Çek Tutarı],GiderlerDökümü[GM Kodu],AylıkGiderlerÖzeti[[#This Row],[GM Kodu]],GiderlerDökümü[Fatura Tarihi],\">=\"&E$3,GiderlerDökümü[Fatura Tarihi],\"<=\"&E$4)+SUMIFS(Diğer[Çek Tutarı],Diğer[GM Kodu],AylıkGiderlerÖzeti[[#This Row],[GM Kodu]],Diğer[Çek İsteğinin Başlangıç Tarihi],\">=\"&DATEVALUE(\" 1 \"&AylıkGiderlerÖzeti[[#Headers],[Şubat]]&_YIL),Diğer[Çek İsteğinin Başlangıç Tarihi],\"<=\"&E$4)","v":{"v":0,"d":"0.00 ₺"}},{"$f":"SUMIFS(GiderlerDökümü[Çek Tutarı],GiderlerDökümü[GM Kodu],AylıkGiderlerÖzeti[[#This Row],[GM Kodu]],GiderlerDökümü[Fatura Tarihi],\">=\"&F$3,GiderlerDökümü[Fatura Tarihi],\"<=\"&F$4)+SUMIFS(Diğer[Çek Tutarı],Diğer[GM Kodu],AylıkGiderlerÖzeti[[#This Row],[GM Kodu]],Diğer[Çek İsteğinin Başlangıç Tarihi],\">=\"&DATEVALUE(\" 1 \"&AylıkGiderlerÖzeti[[#Headers],[Mart]]&_YIL),Diğer[Çek İsteğinin Başlangıç Tarihi],\"<=\"&F$4)","v":{"v":0,"d":"0.00 ₺"}},{"$f":"SUMIFS(GiderlerDökümü[Çek Tutarı],GiderlerDökümü[GM Kodu],AylıkGiderlerÖzeti[[#This Row],[GM Kodu]],GiderlerDökümü[Fatura Tarihi],\">=\"&G$3,GiderlerDökümü[Fatura Tarihi],\"<=\"&G$4)+SUMIFS(Diğer[Çek Tutarı],Diğer[GM Kodu],AylıkGiderlerÖzeti[[#This Row],[GM Kodu]],Diğer[Çek İsteğinin Başlangıç Tarihi],\">=\"&DATEVALUE(\" 1 \"&AylıkGiderlerÖzeti[[#Headers],[Nisan]]&_YIL),Diğer[Çek İsteğinin Başlangıç Tarihi],\"<=\"&G$4)","v":{"v":0,"d":"0.00 ₺"}},{"$f":"SUMIFS(GiderlerDökümü[Çek Tutarı],GiderlerDökümü[GM Kodu],AylıkGiderlerÖzeti[[#This Row],[GM Kodu]],GiderlerDökümü[Fatura Tarihi],\">=\"&H$3,GiderlerDökümü[Fatura Tarihi],\"<=\"&H$4)+SUMIFS(Diğer[Çek Tutarı],Diğer[GM Kodu],AylıkGiderlerÖzeti[[#This Row],[GM Kodu]],Diğer[Çek İsteğinin Başlangıç Tarihi],\">=\"&DATEVALUE(\" 1 \"&AylıkGiderlerÖzeti[[#Headers],[Mayıs]]&_YIL),Diğer[Çek İsteğinin Başlangıç Tarihi],\"<=\"&H$4)","v":{"v":0,"d":"0.00 ₺"}},{"$f":"SUMIFS(GiderlerDökümü[Çek Tutarı],GiderlerDökümü[GM Kodu],AylıkGiderlerÖzeti[[#This Row],[GM Kodu]],GiderlerDökümü[Fatura Tarihi],\">=\"&I$3,GiderlerDökümü[Fatura Tarihi],\"<=\"&I$4)+SUMIFS(Diğer[Çek Tutarı],Diğer[GM Kodu],AylıkGiderlerÖzeti[[#This Row],[GM Kodu]],Diğer[Çek İsteğinin Başlangıç Tarihi],\">=\"&DATEVALUE(\" 1 \"&AylıkGiderlerÖzeti[[#Headers],[Haziran]]&_YIL),Diğer[Çek İsteğinin Başlangıç Tarihi],\"<=\"&I$4)","v":{"v":0,"d":"0.00 ₺"}},{"$f":"SUMIFS(GiderlerDökümü[Çek Tutarı],GiderlerDökümü[GM Kodu],AylıkGiderlerÖzeti[[#This Row],[GM Kodu]],GiderlerDökümü[Fatura Tarihi],\">=\"&J$3,GiderlerDökümü[Fatura Tarihi],\"<=\"&J$4)+SUMIFS(Diğer[Çek Tutarı],Diğer[GM Kodu],AylıkGiderlerÖzeti[[#This Row],[GM Kodu]],Diğer[Çek İsteğinin Başlangıç Tarihi],\">=\"&DATEVALUE(\" 1 \"&AylıkGiderlerÖzeti[[#Headers],[Temmuz]]&_YIL),Diğer[Çek İsteğinin Başlangıç Tarihi],\"<=\"&J$4)","v":{"v":0,"d":"0.00 ₺"}},{"$f":"SUMIFS(GiderlerDökümü[Çek Tutarı],GiderlerDökümü[GM Kodu],AylıkGiderlerÖzeti[[#This Row],[GM Kodu]],GiderlerDökümü[Fatura Tarihi],\">=\"&K$3,GiderlerDökümü[Fatura Tarihi],\"<=\"&K$4)+SUMIFS(Diğer[Çek Tutarı],Diğer[GM Kodu],AylıkGiderlerÖzeti[[#This Row],[GM Kodu]],Diğer[Çek İsteğinin Başlangıç Tarihi],\">=\"&DATEVALUE(\" 1 \"&AylıkGiderlerÖzeti[[#Headers],[Ağustos]]&_YIL),Diğer[Çek İsteğinin Başlangıç Tarihi],\"<=\"&K$4)","v":{"v":0,"d":"0.00 ₺"}},{"$f":"SUMIFS(GiderlerDökümü[Çek Tutarı],GiderlerDökümü[GM Kodu],AylıkGiderlerÖzeti[[#This Row],[GM Kodu]],GiderlerDökümü[Fatura Tarihi],\">=\"&L$3,GiderlerDökümü[Fatura Tarihi],\"<=\"&L$4)+SUMIFS(Diğer[Çek Tutarı],Diğer[GM Kodu],AylıkGiderlerÖzeti[[#This Row],[GM Kodu]],Diğer[Çek İsteğinin Başlangıç Tarihi],\">=\"&DATEVALUE(\" 1 \"&AylıkGiderlerÖzeti[[#Headers],[Eylül]]&_YIL),Diğer[Çek İsteğinin Başlangıç Tarihi],\"<=\"&L$4)","v":{"v":0,"d":"0.00 ₺"}},{"$f":"SUMIFS(GiderlerDökümü[Çek Tutarı],GiderlerDökümü[GM Kodu],AylıkGiderlerÖzeti[[#This Row],[GM Kodu]],GiderlerDökümü[Fatura Tarihi],\">=\"&M$3,GiderlerDökümü[Fatura Tarihi],\"<=\"&M$4)+SUMIFS(Diğer[Çek Tutarı],Diğer[GM Kodu],AylıkGiderlerÖzeti[[#This Row],[GM Kodu]],Diğer[Çek İsteğinin Başlangıç Tarihi],\">=\"&DATEVALUE(\" 1 \"&AylıkGiderlerÖzeti[[#Headers],[Ekim]]&_YIL),Diğer[Çek İsteğinin Başlangıç Tarihi],\"<=\"&M$4)","v":{"v":0,"d":"0.00 ₺"}},{"$f":"SUMIFS(GiderlerDökümü[Çek Tutarı],GiderlerDökümü[GM Kodu],AylıkGiderlerÖzeti[[#This Row],[GM Kodu]],GiderlerDökümü[Fatura Tarihi],\">=\"&N$3,GiderlerDökümü[Fatura Tarihi],\"<=\"&N$4)+SUMIFS(Diğer[Çek Tutarı],Diğer[GM Kodu],AylıkGiderlerÖzeti[[#This Row],[GM Kodu]],Diğer[Çek İsteğinin Başlangıç Tarihi],\">=\"&DATEVALUE(\" 1 \"&AylıkGiderlerÖzeti[[#Headers],[Kasım]]&_YIL),Diğer[Çek İsteğinin Başlangıç Tarihi],\"<=\"&N$4)","v":{"v":0,"d":"0.00 ₺"}},{"$f":"SUMIFS(GiderlerDökümü[Çek Tutarı],GiderlerDökümü[GM Kodu],AylıkGiderlerÖzeti[[#This Row],[GM Kodu]],GiderlerDökümü[Fatura Tarihi],\">=\"&O$3,GiderlerDökümü[Fatura Tarihi],\"<=\"&O$4)+SUMIFS(Diğer[Çek Tutarı],Diğer[GM Kodu],AylıkGiderlerÖzeti[[#This Row],[GM Kodu]],Diğer[Çek İsteğinin Başlangıç Tarihi],\">=\"&DATEVALUE(\" 1 \"&AylıkGiderlerÖzeti[[#Headers],[Aralık]]&_YIL),Diğer[Çek İsteğinin Başlangıç Tarihi],\"<=\"&O$4)","v":{"v":0,"d":"0.00 ₺"}},{"$f":"SUM(AylıkGiderlerÖzeti[[#This Row],[Ocak]:[Aralık]])","v":{"v":0,"d":"0.00 ₺"}}]
[null,2000,"Ofis Ekipmanları",{"$f":"SUMIFS(GiderlerDökümü[Çek Tutarı],GiderlerDökümü[GM Kodu],AylıkGiderlerÖzeti[[#This Row],[GM Kodu]],GiderlerDökümü[Fatura Tarihi],\">=\"&D$3,GiderlerDökümü[Fatura Tarihi],\"<=\"&D$4)+SUMIFS(Diğer[Çek Tutarı],Diğer[GM Kodu],AylıkGiderlerÖzeti[[#This Row],[GM Kodu]],Diğer[Çek İsteğinin Başlangıç Tarihi],\">=\"&DATEVALUE(\" 1 \"&AylıkGiderlerÖzeti[[#Headers],[Ocak]]&_YIL),Diğer[Çek İsteğinin Başlangıç Tarihi],\"<=\"&D$4)","v":{"v":0,"d":"0.00 ₺"}},{"$f":"SUMIFS(GiderlerDökümü[Çek Tutarı],GiderlerDökümü[GM Kodu],AylıkGiderlerÖzeti[[#This Row],[GM Kodu]],GiderlerDökümü[Fatura Tarihi],\">=\"&E$3,GiderlerDökümü[Fatura Tarihi],\"<=\"&E$4)+SUMIFS(Diğer[Çek Tutarı],Diğer[GM Kodu],AylıkGiderlerÖzeti[[#This Row],[GM Kodu]],Diğer[Çek İsteğinin Başlangıç Tarihi],\">=\"&DATEVALUE(\" 1 \"&AylıkGiderlerÖzeti[[#Headers],[Şubat]]&_YIL),Diğer[Çek İsteğinin Başlangıç Tarihi],\"<=\"&E$4)","v":{"v":0,"d":"0.00 ₺"}},{"$f":"SUMIFS(GiderlerDökümü[Çek Tutarı],GiderlerDökümü[GM Kodu],AylıkGiderlerÖzeti[[#This Row],[GM Kodu]],GiderlerDökümü[Fatura Tarihi],\">=\"&F$3,GiderlerDökümü[Fatura Tarihi],\"<=\"&F$4)+SUMIFS(Diğer[Çek Tutarı],Diğer[GM Kodu],AylıkGiderlerÖzeti[[#This Row],[GM Kodu]],Diğer[Çek İsteğinin Başlangıç Tarihi],\">=\"&DATEVALUE(\" 1 \"&AylıkGiderlerÖzeti[[#Headers],[Mart]]&_YIL),Diğer[Çek İsteğinin Başlangıç Tarihi],\"<=\"&F$4)","v":{"v":0,"d":"0.00 ₺"}},{"$f":"SUMIFS(GiderlerDökümü[Çek Tutarı],GiderlerDökümü[GM Kodu],AylıkGiderlerÖzeti[[#This Row],[GM Kodu]],GiderlerDökümü[Fatura Tarihi],\">=\"&G$3,GiderlerDökümü[Fatura Tarihi],\"<=\"&G$4)+SUMIFS(Diğer[Çek Tutarı],Diğer[GM Kodu],AylıkGiderlerÖzeti[[#This Row],[GM Kodu]],Diğer[Çek İsteğinin Başlangıç Tarihi],\">=\"&DATEVALUE(\" 1 \"&AylıkGiderlerÖzeti[[#Headers],[Nisan]]&_YIL),Diğer[Çek İsteğinin Başlangıç Tarihi],\"<=\"&G$4)","v":{"v":0,"d":"0.00 ₺"}},{"$f":"SUMIFS(GiderlerDökümü[Çek Tutarı],GiderlerDökümü[GM Kodu],AylıkGiderlerÖzeti[[#This Row],[GM Kodu]],GiderlerDökümü[Fatura Tarihi],\">=\"&H$3,GiderlerDökümü[Fatura Tarihi],\"<=\"&H$4)+SUMIFS(Diğer[Çek Tutarı],Diğer[GM Kodu],AylıkGiderlerÖzeti[[#This Row],[GM Kodu]],Diğer[Çek İsteğinin Başlangıç Tarihi],\">=\"&DATEVALUE(\" 1 \"&AylıkGiderlerÖzeti[[#Headers],[Mayıs]]&_YIL),Diğer[Çek İsteğinin Başlangıç Tarihi],\"<=\"&H$4)","v":{"v":0,"d":"0.00 ₺"}},{"$f":"SUMIFS(GiderlerDökümü[Çek Tutarı],GiderlerDökümü[GM Kodu],AylıkGiderlerÖzeti[[#This Row],[GM Kodu]],GiderlerDökümü[Fatura Tarihi],\">=\"&I$3,GiderlerDökümü[Fatura Tarihi],\"<=\"&I$4)+SUMIFS(Diğer[Çek Tutarı],Diğer[GM Kodu],AylıkGiderlerÖzeti[[#This Row],[GM Kodu]],Diğer[Çek İsteğinin Başlangıç Tarihi],\">=\"&DATEVALUE(\" 1 \"&AylıkGiderlerÖzeti[[#Headers],[Haziran]]&_YIL),Diğer[Çek İsteğinin Başlangıç Tarihi],\"<=\"&I$4)","v":{"v":0,"d":"0.00 ₺"}},{"$f":"SUMIFS(GiderlerDökümü[Çek Tutarı],GiderlerDökümü[GM Kodu],AylıkGiderlerÖzeti[[#This Row],[GM Kodu]],GiderlerDökümü[Fatura Tarihi],\">=\"&J$3,GiderlerDökümü[Fatura Tarihi],\"<=\"&J$4)+SUMIFS(Diğer[Çek Tutarı],Diğer[GM Kodu],AylıkGiderlerÖzeti[[#This Row],[GM Kodu]],Diğer[Çek İsteğinin Başlangıç Tarihi],\">=\"&DATEVALUE(\" 1 \"&AylıkGiderlerÖzeti[[#Headers],[Temmuz]]&_YIL),Diğer[Çek İsteğinin Başlangıç Tarihi],\"<=\"&J$4)","v":{"v":0,"d":"0.00 ₺"}},{"$f":"SUMIFS(GiderlerDökümü[Çek Tutarı],GiderlerDökümü[GM Kodu],AylıkGiderlerÖzeti[[#This Row],[GM Kodu]],GiderlerDökümü[Fatura Tarihi],\">=\"&K$3,GiderlerDökümü[Fatura Tarihi],\"<=\"&K$4)+SUMIFS(Diğer[Çek Tutarı],Diğer[GM Kodu],AylıkGiderlerÖzeti[[#This Row],[GM Kodu]],Diğer[Çek İsteğinin Başlangıç Tarihi],\">=\"&DATEVALUE(\" 1 \"&AylıkGiderlerÖzeti[[#Headers],[Ağustos]]&_YIL),Diğer[Çek İsteğinin Başlangıç Tarihi],\"<=\"&K$4)","v":{"v":0,"d":"0.00 ₺"}},{"$f":"SUMIFS(GiderlerDökümü[Çek Tutarı],GiderlerDökümü[GM Kodu],AylıkGiderlerÖzeti[[#This Row],[GM Kodu]],GiderlerDökümü[Fatura Tarihi],\">=\"&L$3,GiderlerDökümü[Fatura Tarihi],\"<=\"&L$4)+SUMIFS(Diğer[Çek Tutarı],Diğer[GM Kodu],AylıkGiderlerÖzeti[[#This Row],[GM Kodu]],Diğer[Çek İsteğinin Başlangıç Tarihi],\">=\"&DATEVALUE(\" 1 \"&AylıkGiderlerÖzeti[[#Headers],[Eylül]]&_YIL),Diğer[Çek İsteğinin Başlangıç Tarihi],\"<=\"&L$4)","v":{"v":0,"d":"0.00 ₺"}},{"$f":"SUMIFS(GiderlerDökümü[Çek Tutarı],GiderlerDökümü[GM Kodu],AylıkGiderlerÖzeti[[#This Row],[GM Kodu]],GiderlerDökümü[Fatura Tarihi],\">=\"&M$3,GiderlerDökümü[Fatura Tarihi],\"<=\"&M$4)+SUMIFS(Diğer[Çek Tutarı],Diğer[GM Kodu],AylıkGiderlerÖzeti[[#This Row],[GM Kodu]],Diğer[Çek İsteğinin Başlangıç Tarihi],\">=\"&DATEVALUE(\" 1 \"&AylıkGiderlerÖzeti[[#Headers],[Ekim]]&_YIL),Diğer[Çek İsteğinin Başlangıç Tarihi],\"<=\"&M$4)","v":{"v":0,"d":"0.00 ₺"}},{"$f":"SUMIFS(GiderlerDökümü[Çek Tutarı],GiderlerDökümü[GM Kodu],AylıkGiderlerÖzeti[[#This Row],[GM Kodu]],GiderlerDökümü[Fatura Tarihi],\">=\"&N$3,GiderlerDökümü[Fatura Tarihi],\"<=\"&N$4)+SUMIFS(Diğer[Çek Tutarı],Diğer[GM Kodu],AylıkGiderlerÖzeti[[#This Row],[GM Kodu]],Diğer[Çek İsteğinin Başlangıç Tarihi],\">=\"&DATEVALUE(\" 1 \"&AylıkGiderlerÖzeti[[#Headers],[Kasım]]&_YIL),Diğer[Çek İsteğinin Başlangıç Tarihi],\"<=\"&N$4)","v":{"v":0,"d":"0.00 ₺"}},{"$f":"SUMIFS(GiderlerDökümü[Çek Tutarı],GiderlerDökümü[GM Kodu],AylıkGiderlerÖzeti[[#This Row],[GM Kodu]],GiderlerDökümü[Fatura Tarihi],\">=\"&O$3,GiderlerDökümü[Fatura Tarihi],\"<=\"&O$4)+SUMIFS(Diğer[Çek Tutarı],Diğer[GM Kodu],AylıkGiderlerÖzeti[[#This Row],[GM Kodu]],Diğer[Çek İsteğinin Başlangıç Tarihi],\">=\"&DATEVALUE(\" 1 \"&AylıkGiderlerÖzeti[[#Headers],[Aralık]]&_YIL),Diğer[Çek İsteğinin Başlangıç Tarihi],\"<=\"&O$4)","v":{"v":0,"d":"0.00 ₺"}},{"$f":"SUM(AylıkGiderlerÖzeti[[#This Row],[Ocak]:[Aralık]])","v":{"v":0,"d":"0.00 ₺"}}]
[null,3000,"Yazıcılar",{"$f":"SUMIFS(GiderlerDökümü[Çek Tutarı],GiderlerDökümü[GM Kodu],AylıkGiderlerÖzeti[[#This Row],[GM Kodu]],GiderlerDökümü[Fatura Tarihi],\">=\"&D$3,GiderlerDökümü[Fatura Tarihi],\"<=\"&D$4)+SUMIFS(Diğer[Çek Tutarı],Diğer[GM Kodu],AylıkGiderlerÖzeti[[#This Row],[GM Kodu]],Diğer[Çek İsteğinin Başlangıç Tarihi],\">=\"&DATEVALUE(\" 1 \"&AylıkGiderlerÖzeti[[#Headers],[Ocak]]&_YIL),Diğer[Çek İsteğinin Başlangıç Tarihi],\"<=\"&D$4)","v":{"v":0,"d":"0.00 ₺"}},{"$f":"SUMIFS(GiderlerDökümü[Çek Tutarı],GiderlerDökümü[GM Kodu],AylıkGiderlerÖzeti[[#This Row],[GM Kodu]],GiderlerDökümü[Fatura Tarihi],\">=\"&E$3,GiderlerDökümü[Fatura Tarihi],\"<=\"&E$4)+SUMIFS(Diğer[Çek Tutarı],Diğer[GM Kodu],AylıkGiderlerÖzeti[[#This Row],[GM Kodu]],Diğer[Çek İsteğinin Başlangıç Tarihi],\">=\"&DATEVALUE(\" 1 \"&AylıkGiderlerÖzeti[[#Headers],[Şubat]]&_YIL),Diğer[Çek İsteğinin Başlangıç Tarihi],\"<=\"&E$4)","v":{"v":0,"d":"0.00 ₺"}},{"$f":"SUMIFS(GiderlerDökümü[Çek Tutarı],GiderlerDökümü[GM Kodu],AylıkGiderlerÖzeti[[#This Row],[GM Kodu]],GiderlerDökümü[Fatura Tarihi],\">=\"&F$3,GiderlerDökümü[Fatura Tarihi],\"<=\"&F$4)+SUMIFS(Diğer[Çek Tutarı],Diğer[GM Kodu],AylıkGiderlerÖzeti[[#This Row],[GM Kodu]],Diğer[Çek İsteğinin Başlangıç Tarihi],\">=\"&DATEVALUE(\" 1 \"&AylıkGiderlerÖzeti[[#Headers],[Mart]]&_YIL),Diğer[Çek İsteğinin Başlangıç Tarihi],\"<=\"&F$4)","v":{"v":0,"d":"0.00 ₺"}},{"$f":"SUMIFS(GiderlerDökümü[Çek Tutarı],GiderlerDökümü[GM Kodu],AylıkGiderlerÖzeti[[#This Row],[GM Kodu]],GiderlerDökümü[Fatura Tarihi],\">=\"&G$3,GiderlerDökümü[Fatura Tarihi],\"<=\"&G$4)+SUMIFS(Diğer[Çek Tutarı],Diğer[GM Kodu],AylıkGiderlerÖzeti[[#This Row],[GM Kodu]],Diğer[Çek İsteğinin Başlangıç Tarihi],\">=\"&DATEVALUE(\" 1 \"&AylıkGiderlerÖzeti[[#Headers],[Nisan]]&_YIL),Diğer[Çek İsteğinin Başlangıç Tarihi],\"<=\"&G$4)","v":{"v":0,"d":"0.00 ₺"}},{"$f":"SUMIFS(GiderlerDökümü[Çek Tutarı],GiderlerDökümü[GM Kodu],AylıkGiderlerÖzeti[[#This Row],[GM Kodu]],GiderlerDökümü[Fatura Tarihi],\">=\"&H$3,GiderlerDökümü[Fatura Tarihi],\"<=\"&H$4)+SUMIFS(Diğer[Çek Tutarı],Diğer[GM Kodu],AylıkGiderlerÖzeti[[#This Row],[GM Kodu]],Diğer[Çek İsteğinin Başlangıç Tarihi],\">=\"&DATEVALUE(\" 1 \"&AylıkGiderlerÖzeti[[#Headers],[Mayıs]]&_YIL),Diğer[Çek İsteğinin Başlangıç Tarihi],\"<=\"&H$4)","v":{"v":0,"d":"0.00 ₺"}},{"$f":"SUMIFS(GiderlerDökümü[Çek Tutarı],GiderlerDökümü[GM Kodu],AylıkGiderlerÖzeti[[#This Row],[GM Kodu]],GiderlerDökümü[Fatura Tarihi],\">=\"&I$3,GiderlerDökümü[Fatura Tarihi],\"<=\"&I$4)+SUMIFS(Diğer[Çek Tutarı],Diğer[GM Kodu],AylıkGiderlerÖzeti[[#This Row],[GM Kodu]],Diğer[Çek İsteğinin Başlangıç Tarihi],\">=\"&DATEVALUE(\" 1 \"&AylıkGiderlerÖzeti[[#Headers],[Haziran]]&_YIL),Diğer[Çek İsteğinin Başlangıç Tarihi],\"<=\"&I$4)","v":{"v":0,"d":"0.00 ₺"}},{"$f":"SUMIFS(GiderlerDökümü[Çek Tutarı],GiderlerDökümü[GM Kodu],AylıkGiderlerÖzeti[[#This Row],[GM Kodu]],GiderlerDökümü[Fatura Tarihi],\">=\"&J$3,GiderlerDökümü[Fatura Tarihi],\"<=\"&J$4)+SUMIFS(Diğer[Çek Tutarı],Diğer[GM Kodu],AylıkGiderlerÖzeti[[#This Row],[GM Kodu]],Diğer[Çek İsteğinin Başlangıç Tarihi],\">=\"&DATEVALUE(\" 1 \"&AylıkGiderlerÖzeti[[#Headers],[Temmuz]]&_YIL),Diğer[Çek İsteğinin Başlangıç Tarihi],\"<=\"&J$4)","v":{"v":0,"d":"0.00 ₺"}},{"$f":"SUMIFS(GiderlerDökümü[Çek Tutarı],GiderlerDökümü[GM Kodu],AylıkGiderlerÖzeti[[#This Row],[GM Kodu]],GiderlerDökümü[Fatura Tarihi],\">=\"&K$3,GiderlerDökümü[Fatura Tarihi],\"<=\"&K$4)+SUMIFS(Diğer[Çek Tutarı],Diğer[GM Kodu],AylıkGiderlerÖzeti[[#This Row],[GM Kodu]],Diğer[Çek İsteğinin Başlangıç Tarihi],\">=\"&DATEVALUE(\" 1 \"&AylıkGiderlerÖzeti[[#Headers],[Ağustos]]&_YIL),Diğer[Çek İsteğinin Başlangıç Tarihi],\"<=\"&K$4)","v":{"v":0,"d":"0.00 ₺"}},{"$f":"SUMIFS(GiderlerDökümü[Çek Tutarı],GiderlerDökümü[GM Kodu],AylıkGiderlerÖzeti[[#This Row],[GM Kodu]],GiderlerDökümü[Fatura Tarihi],\">=\"&L$3,GiderlerDökümü[Fatura Tarihi],\"<=\"&L$4)+SUMIFS(Diğer[Çek Tutarı],Diğer[GM Kodu],AylıkGiderlerÖzeti[[#This Row],[GM Kodu]],Diğer[Çek İsteğinin Başlangıç Tarihi],\">=\"&DATEVALUE(\" 1 \"&AylıkGiderlerÖzeti[[#Headers],[Eylül]]&_YIL),Diğer[Çek İsteğinin Başlangıç Tarihi],\"<=\"&L$4)","v":{"v":0,"d":"0.00 ₺"}},{"$f":"SUMIFS(GiderlerDökümü[Çek Tutarı],GiderlerDökümü[GM Kodu],AylıkGiderlerÖzeti[[#This Row],[GM Kodu]],GiderlerDökümü[Fatura Tarihi],\">=\"&M$3,GiderlerDökümü[Fatura Tarihi],\"<=\"&M$4)+SUMIFS(Diğer[Çek Tutarı],Diğer[GM Kodu],AylıkGiderlerÖzeti[[#This Row],[GM Kodu]],Diğer[Çek İsteğinin Başlangıç Tarihi],\">=\"&DATEVALUE(\" 1 \"&AylıkGiderlerÖzeti[[#Headers],[Ekim]]&_YIL),Diğer[Çek İsteğinin Başlangıç Tarihi],\"<=\"&M$4)","v":{"v":0,"d":"0.00 ₺"}},{"$f":"SUMIFS(GiderlerDökümü[Çek Tutarı],GiderlerDökümü[GM Kodu],AylıkGiderlerÖzeti[[#This Row],[GM Kodu]],GiderlerDökümü[Fatura Tarihi],\">=\"&N$3,GiderlerDökümü[Fatura Tarihi],\"<=\"&N$4)+SUMIFS(Diğer[Çek Tutarı],Diğer[GM Kodu],AylıkGiderlerÖzeti[[#This Row],[GM Kodu]],Diğer[Çek İsteğinin Başlangıç Tarihi],\">=\"&DATEVALUE(\" 1 \"&AylıkGiderlerÖzeti[[#Headers],[Kasım]]&_YIL),Diğer[Çek İsteğinin Başlangıç Tarihi],\"<=\"&N$4)","v":{"v":0,"d":"0.00 ₺"}},{"$f":"SUMIFS(GiderlerDökümü[Çek Tutarı],GiderlerDökümü[GM Kodu],AylıkGiderlerÖzeti[[#This Row],[GM Kodu]],GiderlerDökümü[Fatura Tarihi],\">=\"&O$3,GiderlerDökümü[Fatura Tarihi],\"<=\"&O$4)+SUMIFS(Diğer[Çek Tutarı],Diğer[GM Kodu],AylıkGiderlerÖzeti[[#This Row],[GM Kodu]],Diğer[Çek İsteğinin Başlangıç Tarihi],\">=\"&DATEVALUE(\" 1 \"&AylıkGiderlerÖzeti[[#Headers],[Aralık]]&_YIL),Diğer[Çek İsteğinin Başlangıç Tarihi],\"<=\"&O$4)","v":{"v":0,"d":"0.00 ₺"}},{"$f":"SUM(AylıkGiderlerÖzeti[[#This Row],[Ocak]:[Aralık]])","v":{"v":0,"d":"0.00 ₺"}}]
[null,4000,"Sunucu Maliyetleri",{"$f":"SUMIFS(GiderlerDökümü[Çek Tutarı],GiderlerDökümü[GM Kodu],AylıkGiderlerÖzeti[[#This Row],[GM Kodu]],GiderlerDökümü[Fatura Tarihi],\">=\"&D$3,GiderlerDökümü[Fatura Tarihi],\"<=\"&D$4)+SUMIFS(Diğer[Çek Tutarı],Diğer[GM Kodu],AylıkGiderlerÖzeti[[#This Row],[GM Kodu]],Diğer[Çek İsteğinin Başlangıç Tarihi],\">=\"&DATEVALUE(\" 1 \"&AylıkGiderlerÖzeti[[#Headers],[Ocak]]&_YIL),Diğer[Çek İsteğinin Başlangıç Tarihi],\"<=\"&D$4)","v":{"v":0,"d":"0.00 ₺"}},{"$f":"SUMIFS(GiderlerDökümü[Çek Tutarı],GiderlerDökümü[GM Kodu],AylıkGiderlerÖzeti[[#This Row],[GM Kodu]],GiderlerDökümü[Fatura Tarihi],\">=\"&E$3,GiderlerDökümü[Fatura Tarihi],\"<=\"&E$4)+SUMIFS(Diğer[Çek Tutarı],Diğer[GM Kodu],AylıkGiderlerÖzeti[[#This Row],[GM Kodu]],Diğer[Çek İsteğinin Başlangıç Tarihi],\">=\"&DATEVALUE(\" 1 \"&AylıkGiderlerÖzeti[[#Headers],[Şubat]]&_YIL),Diğer[Çek İsteğinin Başlangıç Tarihi],\"<=\"&E$4)","v":{"v":0,"d":"0.00 ₺"}},{"$f":"SUMIFS(GiderlerDökümü[Çek Tutarı],GiderlerDökümü[GM Kodu],AylıkGiderlerÖzeti[[#This Row],[GM Kodu]],GiderlerDökümü[Fatura Tarihi],\">=\"&F$3,GiderlerDökümü[Fatura Tarihi],\"<=\"&F$4)+SUMIFS(Diğer[Çek Tutarı],Diğer[GM Kodu],AylıkGiderlerÖzeti[[#This Row],[GM Kodu]],Diğer[Çek İsteğinin Başlangıç Tarihi],\">=\"&DATEVALUE(\" 1 \"&AylıkGiderlerÖzeti[[#Headers],[Mart]]&_YIL),Diğer[Çek İsteğinin Başlangıç Tarihi],\"<=\"&F$4)","v":{"v":0,"d":"0.00 ₺"}},{"$f":"SUMIFS(GiderlerDökümü[Çek Tutarı],GiderlerDökümü[GM Kodu],AylıkGiderlerÖzeti[[#This Row],[GM Kodu]],GiderlerDökümü[Fatura Tarihi],\">=\"&G$3,GiderlerDökümü[Fatura Tarihi],\"<=\"&G$4)+SUMIFS(Diğer[Çek Tutarı],Diğer[GM Kodu],AylıkGiderlerÖzeti[[#This Row],[GM Kodu]],Diğer[Çek İsteğinin Başlangıç Tarihi],\">=\"&DATEVALUE(\" 1 \"&AylıkGiderlerÖzeti[[#Headers],[Nisan]]&_YIL),Diğer[Çek İsteğinin Başlangıç Tarihi],\"<=\"&G$4)","v":{"v":0,"d":"0.00 ₺"}},{"$f":"SUMIFS(GiderlerDökümü[Çek Tutarı],GiderlerDökümü[GM Kodu],AylıkGiderlerÖzeti[[#This Row],[GM Kodu]],GiderlerDökümü[Fatura Tarihi],\">=\"&H$3,GiderlerDökümü[Fatura Tarihi],\"<=\"&H$4)+SUMIFS(Diğer[Çek Tutarı],Diğer[GM Kodu],AylıkGiderlerÖzeti[[#This Row],[GM Kodu]],Diğer[Çek İsteğinin Başlangıç Tarihi],\">=\"&DATEVALUE(\" 1 \"&AylıkGiderlerÖzeti[[#Headers],[Mayıs]]&_YIL),Diğer[Çek İsteğinin Başlangıç Tarihi],\"<=\"&H$4)","v":{"v":0,"d":"0.00 ₺"}},{"$f":"SUMIFS(GiderlerDökümü[Çek Tutarı],GiderlerDökümü[GM Kodu],AylıkGiderlerÖzeti[[#This Row],[GM Kodu]],GiderlerDökümü[Fatura Tarihi],\">=\"&I$3,GiderlerDökümü[Fatura Tarihi],\"<=\"&I$4)+SUMIFS(Diğer[Çek Tutarı],Diğer[GM Kodu],AylıkGiderlerÖzeti[[#This Row],[GM Kodu]],Diğer[Çek İsteğinin Başlangıç Tarihi],\">=\"&DATEVALUE(\" 1 \"&AylıkGiderlerÖzeti[[#Headers],[Haziran]]&_YIL),Diğer[Çek İsteğinin Başlangıç Tarihi],\"<=\"&I$4)","v":{"v":0,"d":"0.00 ₺"}},{"$f":"SUMIFS(GiderlerDökümü[Çek Tutarı],GiderlerDökümü[GM Kodu],AylıkGiderlerÖzeti[[#This Row],[GM Kodu]],GiderlerDökümü[Fatura Tarihi],\">=\"&J$3,GiderlerDökümü[Fatura Tarihi],\"<=\"&J$4)+SUMIFS(Diğer[Çek Tutarı],Diğer[GM Kodu],AylıkGiderlerÖzeti[[#This Row],[GM Kodu]],Diğer[Çek İsteğinin Başlangıç Tarihi],\">=\"&DATEVALUE(\" 1 \"&AylıkGiderlerÖzeti[[#Headers],[Temmuz]]&_YIL),Diğer[Çek İsteğinin Başlangıç Tarihi],\"<=\"&J$4)","v":{"v":0,"d":"0.00 ₺"}},{"$f":"SUMIFS(GiderlerDökümü[Çek Tutarı],GiderlerDökümü[GM Kodu],AylıkGiderlerÖzeti[[#This Row],[GM Kodu]],GiderlerDökümü[Fatura Tarihi],\">=\"&K$3,GiderlerDökümü[Fatura Tarihi],\"<=\"&K$4)+SUMIFS(Diğer[Çek Tutarı],Diğer[GM Kodu],AylıkGiderlerÖzeti[[#This Row],[GM Kodu]],Diğer[Çek İsteğinin Başlangıç Tarihi],\">=\"&DATEVALUE(\" 1 \"&AylıkGiderlerÖzeti[[#Headers],[Ağustos]]&_YIL),Diğer[Çek İsteğinin Başlangıç Tarihi],\"<=\"&K$4)","v":{"v":0,"d":"0.00 ₺"}},{"$f":"SUMIFS(GiderlerDökümü[Çek Tutarı],GiderlerDökümü[GM Kodu],AylıkGiderlerÖzeti[[#This Row],[GM Kodu]],GiderlerDökümü[Fatura Tarihi],\">=\"&L$3,GiderlerDökümü[Fatura Tarihi],\"<=\"&L$4)+SUMIFS(Diğer[Çek Tutarı],Diğer[GM Kodu],AylıkGiderlerÖzeti[[#This Row],[GM Kodu]],Diğer[Çek İsteğinin Başlangıç Tarihi],\">=\"&DATEVALUE(\" 1 \"&AylıkGiderlerÖzeti[[#Headers],[Eylül]]&_YIL),Diğer[Çek İsteğinin Başlangıç Tarihi],\"<=\"&L$4)","v":{"v":0,"d":"0.00 ₺"}},{"$f":"SUMIFS(GiderlerDökümü[Çek Tutarı],GiderlerDökümü[GM Kodu],AylıkGiderlerÖzeti[[#This Row],[GM Kodu]],GiderlerDökümü[Fatura Tarihi],\">=\"&M$3,GiderlerDökümü[Fatura Tarihi],\"<=\"&M$4)+SUMIFS(Diğer[Çek Tutarı],Diğer[GM Kodu],AylıkGiderlerÖzeti[[#This Row],[GM Kodu]],Diğer[Çek İsteğinin Başlangıç Tarihi],\">=\"&DATEVALUE(\" 1 \"&AylıkGiderlerÖzeti[[#Headers],[Ekim]]&_YIL),Diğer[Çek İsteğinin Başlangıç Tarihi],\"<=\"&M$4)","v":{"v":0,"d":"0.00 ₺"}},{"$f":"SUMIFS(GiderlerDökümü[Çek Tutarı],GiderlerDökümü[GM Kodu],AylıkGiderlerÖzeti[[#This Row],[GM Kodu]],GiderlerDökümü[Fatura Tarihi],\">=\"&N$3,GiderlerDökümü[Fatura Tarihi],\"<=\"&N$4)+SUMIFS(Diğer[Çek Tutarı],Diğer[GM Kodu],AylıkGiderlerÖzeti[[#This Row],[GM Kodu]],Diğer[Çek İsteğinin Başlangıç Tarihi],\">=\"&DATEVALUE(\" 1 \"&AylıkGiderlerÖzeti[[#Headers],[Kasım]]&_YIL),Diğer[Çek İsteğinin Başlangıç Tarihi],\"<=\"&N$4)","v":{"v":0,"d":"0.00 ₺"}},{"$f":"SUMIFS(GiderlerDökümü[Çek Tutarı],GiderlerDökümü[GM Kodu],AylıkGiderlerÖzeti[[#This Row],[GM Kodu]],GiderlerDökümü[Fatura Tarihi],\">=\"&O$3,GiderlerDökümü[Fatura Tarihi],\"<=\"&O$4)+SUMIFS(Diğer[Çek Tutarı],Diğer[GM Kodu],AylıkGiderlerÖzeti[[#This Row],[GM Kodu]],Diğer[Çek İsteğinin Başlangıç Tarihi],\">=\"&DATEVALUE(\" 1 \"&AylıkGiderlerÖzeti[[#Headers],[Aralık]]&_YIL),Diğer[Çek İsteğinin Başlangıç Tarihi],\"<=\"&O$4)","v":{"v":0,"d":"0.00 ₺"}},{"$f":"SUM(AylıkGiderlerÖzeti[[#This Row],[Ocak]:[Aralık]])","v":{"v":0,"d":"0.00 ₺"}}]
[null,5000,"Diğer Malzemeler",{"$f":"SUMIFS(GiderlerDökümü[Çek Tutarı],GiderlerDökümü[GM Kodu],AylıkGiderlerÖzeti[[#This Row],[GM Kodu]],GiderlerDökümü[Fatura Tarihi],\">=\"&D$3,GiderlerDökümü[Fatura Tarihi],\"<=\"&D$4)+SUMIFS(Diğer[Çek Tutarı],Diğer[GM Kodu],AylıkGiderlerÖzeti[[#This Row],[GM Kodu]],Diğer[Çek İsteğinin Başlangıç Tarihi],\">=\"&DATEVALUE(\" 1 \"&AylıkGiderlerÖzeti[[#Headers],[Ocak]]&_YIL),Diğer[Çek İsteğinin Başlangıç Tarihi],\"<=\"&D$4)","v":{"v":0,"d":"0.00 ₺"}},{"$f":"SUMIFS(GiderlerDökümü[Çek Tutarı],GiderlerDökümü[GM Kodu],AylıkGiderlerÖzeti[[#This Row],[GM Kodu]],GiderlerDökümü[Fatura Tarihi],\">=\"&E$3,GiderlerDökümü[Fatura Tarihi],\"<=\"&E$4)+SUMIFS(Diğer[Çek Tutarı],Diğer[GM Kodu],AylıkGiderlerÖzeti[[#This Row],[GM Kodu]],Diğer[Çek İsteğinin Başlangıç Tarihi],\">=\"&DATEVALUE(\" 1 \"&AylıkGiderlerÖzeti[[#Headers],[Şubat]]&_YIL),Diğer[Çek İsteğinin Başlangıç Tarihi],\"<=\"&E$4)","v":{"v":0,"d":"0.00 ₺"}},{"$f":"SUMIFS(GiderlerDökümü[Çek Tutarı],GiderlerDökümü[GM Kodu],AylıkGiderlerÖzeti[[#This Row],[GM Kodu]],GiderlerDökümü[Fatura Tarihi],\">=\"&F$3,GiderlerDökümü[Fatura Tarihi],\"<=\"&F$4)+SUMIFS(Diğer[Çek Tutarı],Diğer[GM Kodu],AylıkGiderlerÖzeti[[#This Row],[GM Kodu]],Diğer[Çek İsteğinin Başlangıç Tarihi],\">=\"&DATEVALUE(\" 1 \"&AylıkGiderlerÖzeti[[#Headers],[Mart]]&_YIL),Diğer[Çek İsteğinin Başlangıç Tarihi],\"<=\"&F$4)","v":{"v":0,"d":"0.00 ₺"}},{"$f":"SUMIFS(GiderlerDökümü[Çek Tutarı],GiderlerDökümü[GM Kodu],AylıkGiderlerÖzeti[[#This Row],[GM Kodu]],GiderlerDökümü[Fatura Tarihi],\">=\"&G$3,GiderlerDökümü[Fatura Tarihi],\"<=\"&G$4)+SUMIFS(Diğer[Çek Tutarı],Diğer[GM Kodu],AylıkGiderlerÖzeti[[#This Row],[GM Kodu]],Diğer[Çek İsteğinin Başlangıç Tarihi],\">=\"&DATEVALUE(\" 1 \"&AylıkGiderlerÖzeti[[#Headers],[Nisan]]&_YIL),Diğer[Çek İsteğinin Başlangıç Tarihi],\"<=\"&G$4)","v":{"v":0,"d":"0.00 ₺"}},{"$f":"SUMIFS(GiderlerDökümü[Çek Tutarı],GiderlerDökümü[GM Kodu],AylıkGiderlerÖzeti[[#This Row],[GM Kodu]],GiderlerDökümü[Fatura Tarihi],\">=\"&H$3,GiderlerDökümü[Fatura Tarihi],\"<=\"&H$4)+SUMIFS(Diğer[Çek Tutarı],Diğer[GM Kodu],AylıkGiderlerÖzeti[[#This Row],[GM Kodu]],Diğer[Çek İsteğinin Başlangıç Tarihi],\">=\"&DATEVALUE(\" 1 \"&AylıkGiderlerÖzeti[[#Headers],[Mayıs]]&_YIL),Diğer[Çek İsteğinin Başlangıç Tarihi],\"<=\"&H$4)","v":{"v":0,"d":"0.00 ₺"}},{"$f":"SUMIFS(GiderlerDökümü[Çek Tutarı],GiderlerDökümü[GM Kodu],AylıkGiderlerÖzeti[[#This Row],[GM Kodu]],GiderlerDökümü[Fatura Tarihi],\">=\"&I$3,GiderlerDökümü[Fatura Tarihi],\"<=\"&I$4)+SUMIFS(Diğer[Çek Tutarı],Diğer[GM Kodu],AylıkGiderlerÖzeti[[#This Row],[GM Kodu]],Diğer[Çek İsteğinin Başlangıç Tarihi],\">=\"&DATEVALUE(\" 1 \"&AylıkGiderlerÖzeti[[#Headers],[Haziran]]&_YIL),Diğer[Çek İsteğinin Başlangıç Tarihi],\"<=\"&I$4)","v":{"v":0,"d":"0.00 ₺"}},{"$f":"SUMIFS(GiderlerDökümü[Çek Tutarı],GiderlerDökümü[GM Kodu],AylıkGiderlerÖzeti[[#This Row],[GM Kodu]],GiderlerDökümü[Fatura Tarihi],\">=\"&J$3,GiderlerDökümü[Fatura Tarihi],\"<=\"&J$4)+SUMIFS(Diğer[Çek Tutarı],Diğer[GM Kodu],AylıkGiderlerÖzeti[[#This Row],[GM Kodu]],Diğer[Çek İsteğinin Başlangıç Tarihi],\">=\"&DATEVALUE(\" 1 \"&AylıkGiderlerÖzeti[[#Headers],[Temmuz]]&_YIL),Diğer[Çek İsteğinin Başlangıç Tarihi],\"<=\"&J$4)","v":{"v":0,"d":"0.00 ₺"}},{"$f":"SUMIFS(GiderlerDökümü[Çek Tutarı],GiderlerDökümü[GM Kodu],AylıkGiderlerÖzeti[[#This Row],[GM Kodu]],GiderlerDökümü[Fatura Tarihi],\">=\"&K$3,GiderlerDökümü[Fatura Tarihi],\"<=\"&K$4)+SUMIFS(Diğer[Çek Tutarı],Diğer[GM Kodu],AylıkGiderlerÖzeti[[#This Row],[GM Kodu]],Diğer[Çek İsteğinin Başlangıç Tarihi],\">=\"&DATEVALUE(\" 1 \"&AylıkGiderlerÖzeti[[#Headers],[Ağustos]]&_YIL),Diğer[Çek İsteğinin Başlangıç Tarihi],\"<=\"&K$4)","v":{"v":0,"d":"0.00 ₺"}},{"$f":"SUMIFS(GiderlerDökümü[Çek Tutarı],GiderlerDökümü[GM Kodu],AylıkGiderlerÖzeti[[#This Row],[GM Kodu]],GiderlerDökümü[Fatura Tarihi],\">=\"&L$3,GiderlerDökümü[Fatura Tarihi],\"<=\"&L$4)+SUMIFS(Diğer[Çek Tutarı],Diğer[GM Kodu],AylıkGiderlerÖzeti[[#This Row],[GM Kodu]],Diğer[Çek İsteğinin Başlangıç Tarihi],\">=\"&DATEVALUE(\" 1 \"&AylıkGiderlerÖzeti[[#Headers],[Eylül]]&_YIL),Diğer[Çek İsteğinin Başlangıç Tarihi],\"<=\"&L$4)","v":{"v":0,"d":"0.00 ₺"}},{"$f":"SUMIFS(GiderlerDökümü[Çek Tutarı],GiderlerDökümü[GM Kodu],AylıkGiderlerÖzeti[[#This Row],[GM Kodu]],GiderlerDökümü[Fatura Tarihi],\">=\"&M$3,GiderlerDökümü[Fatura Tarihi],\"<=\"&M$4)+SUMIFS(Diğer[Çek Tutarı],Diğer[GM Kodu],AylıkGiderlerÖzeti[[#This Row],[GM Kodu]],Diğer[Çek İsteğinin Başlangıç Tarihi],\">=\"&DATEVALUE(\" 1 \"&AylıkGiderlerÖzeti[[#Headers],[Ekim]]&_YIL),Diğer[Çek İsteğinin Başlangıç Tarihi],\"<=\"&M$4)","v":{"v":0,"d":"0.00 ₺"}},{"$f":"SUMIFS(GiderlerDökümü[Çek Tutarı],GiderlerDökümü[GM Kodu],AylıkGiderlerÖzeti[[#This Row],[GM Kodu]],GiderlerDökümü[Fatura Tarihi],\">=\"&N$3,GiderlerDökümü[Fatura Tarihi],\"<=\"&N$4)+SUMIFS(Diğer[Çek Tutarı],Diğer[GM Kodu],AylıkGiderlerÖzeti[[#This Row],[GM Kodu]],Diğer[Çek İsteğinin Başlangıç Tarihi],\">=\"&DATEVALUE(\" 1 \"&AylıkGiderlerÖzeti[[#Headers],[Kasım]]&_YIL),Diğer[Çek İsteğinin Başlangıç Tarihi],\"<=\"&N$4)","v":{"v":0,"d":"0.00 ₺"}},{"$f":"SUMIFS(GiderlerDökümü[Çek Tutarı],GiderlerDökümü[GM Kodu],AylıkGiderlerÖzeti[[#This Row],[GM Kodu]],GiderlerDökümü[Fatura Tarihi],\">=\"&O$3,GiderlerDökümü[Fatura Tarihi],\"<=\"&O$4)+SUMIFS(Diğer[Çek Tutarı],Diğer[GM Kodu],AylıkGiderlerÖzeti[[#This Row],[GM Kodu]],Diğer[Çek İsteğinin Başlangıç Tarihi],\">=\"&DATEVALUE(\" 1 \"&AylıkGiderlerÖzeti[[#Headers],[Aralık]]&_YIL),Diğer[Çek İsteğinin Başlangıç Tarihi],\"<=\"&O$4)","v":{"v":0,"d":"0.00 ₺"}},{"$f":"SUM(AylıkGiderlerÖzeti[[#This Row],[Ocak]:[Aralık]])","v":{"v":0,"d":"0.00 ₺"}}]
[null,6000,"Müşteri Giderleri",{"$f":"SUMIFS(GiderlerDökümü[Çek Tutarı],GiderlerDökümü[GM Kodu],AylıkGiderlerÖzeti[[#This Row],[GM Kodu]],GiderlerDökümü[Fatura Tarihi],\">=\"&D$3,GiderlerDökümü[Fatura Tarihi],\"<=\"&D$4)+SUMIFS(Diğer[Çek Tutarı],Diğer[GM Kodu],AylıkGiderlerÖzeti[[#This Row],[GM Kodu]],Diğer[Çek İsteğinin Başlangıç Tarihi],\">=\"&DATEVALUE(\" 1 \"&AylıkGiderlerÖzeti[[#Headers],[Ocak]]&_YIL),Diğer[Çek İsteğinin Başlangıç Tarihi],\"<=\"&D$4)","v":{"v":0,"d":"0.00 ₺"}},{"$f":"SUMIFS(GiderlerDökümü[Çek Tutarı],GiderlerDökümü[GM Kodu],AylıkGiderlerÖzeti[[#This Row],[GM Kodu]],GiderlerDökümü[Fatura Tarihi],\">=\"&E$3,GiderlerDökümü[Fatura Tarihi],\"<=\"&E$4)+SUMIFS(Diğer[Çek Tutarı],Diğer[GM Kodu],AylıkGiderlerÖzeti[[#This Row],[GM Kodu]],Diğer[Çek İsteğinin Başlangıç Tarihi],\">=\"&DATEVALUE(\" 1 \"&AylıkGiderlerÖzeti[[#Headers],[Şubat]]&_YIL),Diğer[Çek İsteğinin Başlangıç Tarihi],\"<=\"&E$4)","v":{"v":0,"d":"0.00 ₺"}},{"$f":"SUMIFS(GiderlerDökümü[Çek Tutarı],GiderlerDökümü[GM Kodu],AylıkGiderlerÖzeti[[#This Row],[GM Kodu]],GiderlerDökümü[Fatura Tarihi],\">=\"&F$3,GiderlerDökümü[Fatura Tarihi],\"<=\"&F$4)+SUMIFS(Diğer[Çek Tutarı],Diğer[GM Kodu],AylıkGiderlerÖzeti[[#This Row],[GM Kodu]],Diğer[Çek İsteğinin Başlangıç Tarihi],\">=\"&DATEVALUE(\" 1 \"&AylıkGiderlerÖzeti[[#Headers],[Mart]]&_YIL),Diğer[Çek İsteğinin Başlangıç Tarihi],\"<=\"&F$4)","v":{"v":0,"d":"0.00 ₺"}},{"$f":"SUMIFS(GiderlerDökümü[Çek Tutarı],GiderlerDökümü[GM Kodu],AylıkGiderlerÖzeti[[#This Row],[GM Kodu]],GiderlerDökümü[Fatura Tarihi],\">=\"&G$3,GiderlerDökümü[Fatura Tarihi],\"<=\"&G$4)+SUMIFS(Diğer[Çek Tutarı],Diğer[GM Kodu],AylıkGiderlerÖzeti[[#This Row],[GM Kodu]],Diğer[Çek İsteğinin Başlangıç Tarihi],\">=\"&DATEVALUE(\" 1 \"&AylıkGiderlerÖzeti[[#Headers],[Nisan]]&_YIL),Diğer[Çek İsteğinin Başlangıç Tarihi],\"<=\"&G$4)","v":{"v":0,"d":"0.00 ₺"}},{"$f":"SUMIFS(GiderlerDökümü[Çek Tutarı],GiderlerDökümü[GM Kodu],AylıkGiderlerÖzeti[[#This Row],[GM Kodu]],GiderlerDökümü[Fatura Tarihi],\">=\"&H$3,GiderlerDökümü[Fatura Tarihi],\"<=\"&H$4)+SUMIFS(Diğer[Çek Tutarı],Diğer[GM Kodu],AylıkGiderlerÖzeti[[#This Row],[GM Kodu]],Diğer[Çek İsteğinin Başlangıç Tarihi],\">=\"&DATEVALUE(\" 1 \"&AylıkGiderlerÖzeti[[#Headers],[Mayıs]]&_YIL),Diğer[Çek İsteğinin Başlangıç Tarihi],\"<=\"&H$4)","v":{"v":0,"d":"0.00 ₺"}},{"$f":"SUMIFS(GiderlerDökümü[Çek Tutarı],GiderlerDökümü[GM Kodu],AylıkGiderlerÖzeti[[#This Row],[GM Kodu]],GiderlerDökümü[Fatura Tarihi],\">=\"&I$3,GiderlerDökümü[Fatura Tarihi],\"<=\"&I$4)+SUMIFS(Diğer[Çek Tutarı],Diğer[GM Kodu],AylıkGiderlerÖzeti[[#This Row],[GM Kodu]],Diğer[Çek İsteğinin Başlangıç Tarihi],\">=\"&DATEVALUE(\" 1 \"&AylıkGiderlerÖzeti[[#Headers],[Haziran]]&_YIL),Diğer[Çek İsteğinin Başlangıç Tarihi],\"<=\"&I$4)","v":{"v":0,"d":"0.00 ₺"}},{"$f":"SUMIFS(GiderlerDökümü[Çek Tutarı],GiderlerDökümü[GM Kodu],AylıkGiderlerÖzeti[[#This Row],[GM Kodu]],GiderlerDökümü[Fatura Tarihi],\">=\"&J$3,GiderlerDökümü[Fatura Tarihi],\"<=\"&J$4)+SUMIFS(Diğer[Çek Tutarı],Diğer[GM Kodu],AylıkGiderlerÖzeti[[#This Row],[GM Kodu]],Diğer[Çek İsteğinin Başlangıç Tarihi],\">=\"&DATEVALUE(\" 1 \"&AylıkGiderlerÖzeti[[#Headers],[Temmuz]]&_YIL),Diğer[Çek İsteğinin Başlangıç Tarihi],\"<=\"&J$4)","v":{"v":0,"d":"0.00 ₺"}},{"$f":"SUMIFS(GiderlerDökümü[Çek Tutarı],GiderlerDökümü[GM Kodu],AylıkGiderlerÖzeti[[#This Row],[GM Kodu]],GiderlerDökümü[Fatura Tarihi],\">=\"&K$3,GiderlerDökümü[Fatura Tarihi],\"<=\"&K$4)+SUMIFS(Diğer[Çek Tutarı],Diğer[GM Kodu],AylıkGiderlerÖzeti[[#This Row],[GM Kodu]],Diğer[Çek İsteğinin Başlangıç Tarihi],\">=\"&DATEVALUE(\" 1 \"&AylıkGiderlerÖzeti[[#Headers],[Ağustos]]&_YIL),Diğer[Çek İsteğinin Başlangıç Tarihi],\"<=\"&K$4)","v":{"v":0,"d":"0.00 ₺"}},{"$f":"SUMIFS(GiderlerDökümü[Çek Tutarı],GiderlerDökümü[GM Kodu],AylıkGiderlerÖzeti[[#This Row],[GM Kodu]],GiderlerDökümü[Fatura Tarihi],\">=\"&L$3,GiderlerDökümü[Fatura Tarihi],\"<=\"&L$4)+SUMIFS(Diğer[Çek Tutarı],Diğer[GM Kodu],AylıkGiderlerÖzeti[[#This Row],[GM Kodu]],Diğer[Çek İsteğinin Başlangıç Tarihi],\">=\"&DATEVALUE(\" 1 \"&AylıkGiderlerÖzeti[[#Headers],[Eylül]]&_YIL),Diğer[Çek İsteğinin Başlangıç Tarihi],\"<=\"&L$4)","v":{"v":0,"d":"0.00 ₺"}},{"$f":"SUMIFS(GiderlerDökümü[Çek Tutarı],GiderlerDökümü[GM Kodu],AylıkGiderlerÖzeti[[#This Row],[GM Kodu]],GiderlerDökümü[Fatura Tarihi],\">=\"&M$3,GiderlerDökümü[Fatura Tarihi],\"<=\"&M$4)+SUMIFS(Diğer[Çek Tutarı],Diğer[GM Kodu],AylıkGiderlerÖzeti[[#This Row],[GM Kodu]],Diğer[Çek İsteğinin Başlangıç Tarihi],\">=\"&DATEVALUE(\" 1 \"&AylıkGiderlerÖzeti[[#Headers],[Ekim]]&_YIL),Diğer[Çek İsteğinin Başlangıç Tarihi],\"<=\"&M$4)","v":{"v":0,"d":"0.00 ₺"}},{"$f":"SUMIFS(GiderlerDökümü[Çek Tutarı],GiderlerDökümü[GM Kodu],AylıkGiderlerÖzeti[[#This Row],[GM Kodu]],GiderlerDökümü[Fatura Tarihi],\">=\"&N$3,GiderlerDökümü[Fatura Tarihi],\"<=\"&N$4)+SUMIFS(Diğer[Çek Tutarı],Diğer[GM Kodu],AylıkGiderlerÖzeti[[#This Row],[GM Kodu]],Diğer[Çek İsteğinin Başlangıç Tarihi],\">=\"&DATEVALUE(\" 1 \"&AylıkGiderlerÖzeti[[#Headers],[Kasım]]&_YIL),Diğer[Çek İsteğinin Başlangıç Tarihi],\"<=\"&N$4)","v":{"v":0,"d":"0.00 ₺"}},{"$f":"SUMIFS(GiderlerDökümü[Çek Tutarı],GiderlerDökümü[GM Kodu],AylıkGiderlerÖzeti[[#This Row],[GM Kodu]],GiderlerDökümü[Fatura Tarihi],\">=\"&O$3,GiderlerDökümü[Fatura Tarihi],\"<=\"&O$4)+SUMIFS(Diğer[Çek Tutarı],Diğer[GM Kodu],AylıkGiderlerÖzeti[[#This Row],[GM Kodu]],Diğer[Çek İsteğinin Başlangıç Tarihi],\">=\"&DATEVALUE(\" 1 \"&AylıkGiderlerÖzeti[[#Headers],[Aralık]]&_YIL),Diğer[Çek İsteğinin Başlangıç Tarihi],\"<=\"&O$4)","v":{"v":0,"d":"0.00 ₺"}},{"$f":"SUM(AylıkGiderlerÖzeti[[#This Row],[Ocak]:[Aralık]])","v":{"v":0,"d":"0.00 ₺"}}]
[null,7000,"Bilgisayarlar",{"$f":"SUMIFS(GiderlerDökümü[Çek Tutarı],GiderlerDökümü[GM Kodu],AylıkGiderlerÖzeti[[#This Row],[GM Kodu]],GiderlerDökümü[Fatura Tarihi],\">=\"&D$3,GiderlerDökümü[Fatura Tarihi],\"<=\"&D$4)+SUMIFS(Diğer[Çek Tutarı],Diğer[GM Kodu],AylıkGiderlerÖzeti[[#This Row],[GM Kodu]],Diğer[Çek İsteğinin Başlangıç Tarihi],\">=\"&DATEVALUE(\" 1 \"&AylıkGiderlerÖzeti[[#Headers],[Ocak]]&_YIL),Diğer[Çek İsteğinin Başlangıç Tarihi],\"<=\"&D$4)","v":{"v":0,"d":"0.00 ₺"}},{"$f":"SUMIFS(GiderlerDökümü[Çek Tutarı],GiderlerDökümü[GM Kodu],AylıkGiderlerÖzeti[[#This Row],[GM Kodu]],GiderlerDökümü[Fatura Tarihi],\">=\"&E$3,GiderlerDökümü[Fatura Tarihi],\"<=\"&E$4)+SUMIFS(Diğer[Çek Tutarı],Diğer[GM Kodu],AylıkGiderlerÖzeti[[#This Row],[GM Kodu]],Diğer[Çek İsteğinin Başlangıç Tarihi],\">=\"&DATEVALUE(\" 1 \"&AylıkGiderlerÖzeti[[#Headers],[Şubat]]&_YIL),Diğer[Çek İsteğinin Başlangıç Tarihi],\"<=\"&E$4)","v":{"v":0,"d":"0.00 ₺"}},{"$f":"SUMIFS(GiderlerDökümü[Çek Tutarı],GiderlerDökümü[GM Kodu],AylıkGiderlerÖzeti[[#This Row],[GM Kodu]],GiderlerDökümü[Fatura Tarihi],\">=\"&F$3,GiderlerDökümü[Fatura Tarihi],\"<=\"&F$4)+SUMIFS(Diğer[Çek Tutarı],Diğer[GM Kodu],AylıkGiderlerÖzeti[[#This Row],[GM Kodu]],Diğer[Çek İsteğinin Başlangıç Tarihi],\">=\"&DATEVALUE(\" 1 \"&AylıkGiderlerÖzeti[[#Headers],[Mart]]&_YIL),Diğer[Çek İsteğinin Başlangıç Tarihi],\"<=\"&F$4)","v":{"v":0,"d":"0.00 ₺"}},{"$f":"SUMIFS(GiderlerDökümü[Çek Tutarı],GiderlerDökümü[GM Kodu],AylıkGiderlerÖzeti[[#This Row],[GM Kodu]],GiderlerDökümü[Fatura Tarihi],\">=\"&G$3,GiderlerDökümü[Fatura Tarihi],\"<=\"&G$4)+SUMIFS(Diğer[Çek Tutarı],Diğer[GM Kodu],AylıkGiderlerÖzeti[[#This Row],[GM Kodu]],Diğer[Çek İsteğinin Başlangıç Tarihi],\">=\"&DATEVALUE(\" 1 \"&AylıkGiderlerÖzeti[[#Headers],[Nisan]]&_YIL),Diğer[Çek İsteğinin Başlangıç Tarihi],\"<=\"&G$4)","v":{"v":0,"d":"0.00 ₺"}},{"$f":"SUMIFS(GiderlerDökümü[Çek Tutarı],GiderlerDökümü[GM Kodu],AylıkGiderlerÖzeti[[#This Row],[GM Kodu]],GiderlerDökümü[Fatura Tarihi],\">=\"&H$3,GiderlerDökümü[Fatura Tarihi],\"<=\"&H$4)+SUMIFS(Diğer[Çek Tutarı],Diğer[GM Kodu],AylıkGiderlerÖzeti[[#This Row],[GM Kodu]],Diğer[Çek İsteğinin Başlangıç Tarihi],\">=\"&DATEVALUE(\" 1 \"&AylıkGiderlerÖzeti[[#Headers],[Mayıs]]&_YIL),Diğer[Çek İsteğinin Başlangıç Tarihi],\"<=\"&H$4)","v":{"v":0,"d":"0.00 ₺"}},{"$f":"SUMIFS(GiderlerDökümü[Çek Tutarı],GiderlerDökümü[GM Kodu],AylıkGiderlerÖzeti[[#This Row],[GM Kodu]],GiderlerDökümü[Fatura Tarihi],\">=\"&I$3,GiderlerDökümü[Fatura Tarihi],\"<=\"&I$4)+SUMIFS(Diğer[Çek Tutarı],Diğer[GM Kodu],AylıkGiderlerÖzeti[[#This Row],[GM Kodu]],Diğer[Çek İsteğinin Başlangıç Tarihi],\">=\"&DATEVALUE(\" 1 \"&AylıkGiderlerÖzeti[[#Headers],[Haziran]]&_YIL),Diğer[Çek İsteğinin Başlangıç Tarihi],\"<=\"&I$4)","v":{"v":0,"d":"0.00 ₺"}},{"$f":"SUMIFS(GiderlerDökümü[Çek Tutarı],GiderlerDökümü[GM Kodu],AylıkGiderlerÖzeti[[#This Row],[GM Kodu]],GiderlerDökümü[Fatura Tarihi],\">=\"&J$3,GiderlerDökümü[Fatura Tarihi],\"<=\"&J$4)+SUMIFS(Diğer[Çek Tutarı],Diğer[GM Kodu],AylıkGiderlerÖzeti[[#This Row],[GM Kodu]],Diğer[Çek İsteğinin Başlangıç Tarihi],\">=\"&DATEVALUE(\" 1 \"&AylıkGiderlerÖzeti[[#Headers],[Temmuz]]&_YIL),Diğer[Çek İsteğinin Başlangıç Tarihi],\"<=\"&J$4)","v":{"v":0,"d":"0.00 ₺"}},{"$f":"SUMIFS(GiderlerDökümü[Çek Tutarı],GiderlerDökümü[GM Kodu],AylıkGiderlerÖzeti[[#This Row],[GM Kodu]],GiderlerDökümü[Fatura Tarihi],\">=\"&K$3,GiderlerDökümü[Fatura Tarihi],\"<=\"&K$4)+SUMIFS(Diğer[Çek Tutarı],Diğer[GM Kodu],AylıkGiderlerÖzeti[[#This Row],[GM Kodu]],Diğer[Çek İsteğinin Başlangıç Tarihi],\">=\"&DATEVALUE(\" 1 \"&AylıkGiderlerÖzeti[[#Headers],[Ağustos]]&_YIL),Diğer[Çek İsteğinin Başlangıç Tarihi],\"<=\"&K$4)","v":{"v":0,"d":"0.00 ₺"}},{"$f":"SUMIFS(GiderlerDökümü[Çek Tutarı],GiderlerDökümü[GM Kodu],AylıkGiderlerÖzeti[[#This Row],[GM Kodu]],GiderlerDökümü[Fatura Tarihi],\">=\"&L$3,GiderlerDökümü[Fatura Tarihi],\"<=\"&L$4)+SUMIFS(Diğer[Çek Tutarı],Diğer[GM Kodu],AylıkGiderlerÖzeti[[#This Row],[GM Kodu]],Diğer[Çek İsteğinin Başlangıç Tarihi],\">=\"&DATEVALUE(\" 1 \"&AylıkGiderlerÖzeti[[#Headers],[Eylül]]&_YIL),Diğer[Çek İsteğinin Başlangıç Tarihi],\"<=\"&L$4)","v":{"v":0,"d":"0.00 ₺"}},{"$f":"SUMIFS(GiderlerDökümü[Çek Tutarı],GiderlerDökümü[GM Kodu],AylıkGiderlerÖzeti[[#This Row],[GM Kodu]],GiderlerDökümü[Fatura Tarihi],\">=\"&M$3,GiderlerDökümü[Fatura Tarihi],\"<=\"&M$4)+SUMIFS(Diğer[Çek Tutarı],Diğer[GM Kodu],AylıkGiderlerÖzeti[[#This Row],[GM Kodu]],Diğer[Çek İsteğinin Başlangıç Tarihi],\">=\"&DATEVALUE(\" 1 \"&AylıkGiderlerÖzeti[[#Headers],[Ekim]]&_YIL),Diğer[Çek İsteğinin Başlangıç Tarihi],\"<=\"&M$4)","v":{"v":0,"d":"0.00 ₺"}},{"$f":"SUMIFS(GiderlerDökümü[Çek Tutarı],GiderlerDökümü[GM Kodu],AylıkGiderlerÖzeti[[#This Row],[GM Kodu]],GiderlerDökümü[Fatura Tarihi],\">=\"&N$3,GiderlerDökümü[Fatura Tarihi],\"<=\"&N$4)+SUMIFS(Diğer[Çek Tutarı],Diğer[GM Kodu],AylıkGiderlerÖzeti[[#This Row],[GM Kodu]],Diğer[Çek İsteğinin Başlangıç Tarihi],\">=\"&DATEVALUE(\" 1 \"&AylıkGiderlerÖzeti[[#Headers],[Kasım]]&_YIL),Diğer[Çek İsteğinin Başlangıç Tarihi],\"<=\"&N$4)","v":{"v":0,"d":"0.00 ₺"}},{"$f":"SUMIFS(GiderlerDökümü[Çek Tutarı],GiderlerDökümü[GM Kodu],AylıkGiderlerÖzeti[[#This Row],[GM Kodu]],GiderlerDökümü[Fatura Tarihi],\">=\"&O$3,GiderlerDökümü[Fatura Tarihi],\"<=\"&O$4)+SUMIFS(Diğer[Çek Tutarı],Diğer[GM Kodu],AylıkGiderlerÖzeti[[#This Row],[GM Kodu]],Diğer[Çek İsteğinin Başlangıç Tarihi],\">=\"&DATEVALUE(\" 1 \"&AylıkGiderlerÖzeti[[#Headers],[Aralık]]&_YIL),Diğer[Çek İsteğinin Başlangıç Tarihi],\"<=\"&O$4)","v":{"v":0,"d":"0.00 ₺"}},{"$f":"SUM(AylıkGiderlerÖzeti[[#This Row],[Ocak]:[Aralık]])","v":{"v":0,"d":"0.00 ₺"}}]
[null,8000,"Sağlık Planı",{"$f":"SUMIFS(GiderlerDökümü[Çek Tutarı],GiderlerDökümü[GM Kodu],AylıkGiderlerÖzeti[[#This Row],[GM Kodu]],GiderlerDökümü[Fatura Tarihi],\">=\"&D$3,GiderlerDökümü[Fatura Tarihi],\"<=\"&D$4)+SUMIFS(Diğer[Çek Tutarı],Diğer[GM Kodu],AylıkGiderlerÖzeti[[#This Row],[GM Kodu]],Diğer[Çek İsteğinin Başlangıç Tarihi],\">=\"&DATEVALUE(\" 1 \"&AylıkGiderlerÖzeti[[#Headers],[Ocak]]&_YIL),Diğer[Çek İsteğinin Başlangıç Tarihi],\"<=\"&D$4)","v":{"v":0,"d":"0.00 ₺"}},{"$f":"SUMIFS(GiderlerDökümü[Çek Tutarı],GiderlerDökümü[GM Kodu],AylıkGiderlerÖzeti[[#This Row],[GM Kodu]],GiderlerDökümü[Fatura Tarihi],\">=\"&E$3,GiderlerDökümü[Fatura Tarihi],\"<=\"&E$4)+SUMIFS(Diğer[Çek Tutarı],Diğer[GM Kodu],AylıkGiderlerÖzeti[[#This Row],[GM Kodu]],Diğer[Çek İsteğinin Başlangıç Tarihi],\">=\"&DATEVALUE(\" 1 \"&AylıkGiderlerÖzeti[[#Headers],[Şubat]]&_YIL),Diğer[Çek İsteğinin Başlangıç Tarihi],\"<=\"&E$4)","v":{"v":0,"d":"0.00 ₺"}},{"$f":"SUMIFS(GiderlerDökümü[Çek Tutarı],GiderlerDökümü[GM Kodu],AylıkGiderlerÖzeti[[#This Row],[GM Kodu]],GiderlerDökümü[Fatura Tarihi],\">=\"&F$3,GiderlerDökümü[Fatura Tarihi],\"<=\"&F$4)+SUMIFS(Diğer[Çek Tutarı],Diğer[GM Kodu],AylıkGiderlerÖzeti[[#This Row],[GM Kodu]],Diğer[Çek İsteğinin Başlangıç Tarihi],\">=\"&DATEVALUE(\" 1 \"&AylıkGiderlerÖzeti[[#Headers],[Mart]]&_YIL),Diğer[Çek İsteğinin Başlangıç Tarihi],\"<=\"&F$4)","v":{"v":0,"d":"0.00 ₺"}},{"$f":"SUMIFS(GiderlerDökümü[Çek Tutarı],GiderlerDökümü[GM Kodu],AylıkGiderlerÖzeti[[#This Row],[GM Kodu]],GiderlerDökümü[Fatura Tarihi],\">=\"&G$3,GiderlerDökümü[Fatura Tarihi],\"<=\"&G$4)+SUMIFS(Diğer[Çek Tutarı],Diğer[GM Kodu],AylıkGiderlerÖzeti[[#This Row],[GM Kodu]],Diğer[Çek İsteğinin Başlangıç Tarihi],\">=\"&DATEVALUE(\" 1 \"&AylıkGiderlerÖzeti[[#Headers],[Nisan]]&_YIL),Diğer[Çek İsteğinin Başlangıç Tarihi],\"<=\"&G$4)","v":{"v":0,"d":"0.00 ₺"}},{"$f":"SUMIFS(GiderlerDökümü[Çek Tutarı],GiderlerDökümü[GM Kodu],AylıkGiderlerÖzeti[[#This Row],[GM Kodu]],GiderlerDökümü[Fatura Tarihi],\">=\"&H$3,GiderlerDökümü[Fatura Tarihi],\"<=\"&H$4)+SUMIFS(Diğer[Çek Tutarı],Diğer[GM Kodu],AylıkGiderlerÖzeti[[#This Row],[GM Kodu]],Diğer[Çek İsteğinin Başlangıç Tarihi],\">=\"&DATEVALUE(\" 1 \"&AylıkGiderlerÖzeti[[#Headers],[Mayıs]]&_YIL),Diğer[Çek İsteğinin Başlangıç Tarihi],\"<=\"&H$4)","v":{"v":0,"d":"0.00 ₺"}},{"$f":"SUMIFS(GiderlerDökümü[Çek Tutarı],GiderlerDökümü[GM Kodu],AylıkGiderlerÖzeti[[#This Row],[GM Kodu]],GiderlerDökümü[Fatura Tarihi],\">=\"&I$3,GiderlerDökümü[Fatura Tarihi],\"<=\"&I$4)+SUMIFS(Diğer[Çek Tutarı],Diğer[GM Kodu],AylıkGiderlerÖzeti[[#This Row],[GM Kodu]],Diğer[Çek İsteğinin Başlangıç Tarihi],\">=\"&DATEVALUE(\" 1 \"&AylıkGiderlerÖzeti[[#Headers],[Haziran]]&_YIL),Diğer[Çek İsteğinin Başlangıç Tarihi],\"<=\"&I$4)","v":{"v":0,"d":"0.00 ₺"}},{"$f":"SUMIFS(GiderlerDökümü[Çek Tutarı],GiderlerDökümü[GM Kodu],AylıkGiderlerÖzeti[[#This Row],[GM Kodu]],GiderlerDökümü[Fatura Tarihi],\">=\"&J$3,GiderlerDökümü[Fatura Tarihi],\"<=\"&J$4)+SUMIFS(Diğer[Çek Tutarı],Diğer[GM Kodu],AylıkGiderlerÖzeti[[#This Row],[GM Kodu]],Diğer[Çek İsteğinin Başlangıç Tarihi],\">=\"&DATEVALUE(\" 1 \"&AylıkGiderlerÖzeti[[#Headers],[Temmuz]]&_YIL),Diğer[Çek İsteğinin Başlangıç Tarihi],\"<=\"&J$4)","v":{"v":0,"d":"0.00 ₺"}},{"$f":"SUMIFS(GiderlerDökümü[Çek Tutarı],GiderlerDökümü[GM Kodu],AylıkGiderlerÖzeti[[#This Row],[GM Kodu]],GiderlerDökümü[Fatura Tarihi],\">=\"&K$3,GiderlerDökümü[Fatura Tarihi],\"<=\"&K$4)+SUMIFS(Diğer[Çek Tutarı],Diğer[GM Kodu],AylıkGiderlerÖzeti[[#This Row],[GM Kodu]],Diğer[Çek İsteğinin Başlangıç Tarihi],\">=\"&DATEVALUE(\" 1 \"&AylıkGiderlerÖzeti[[#Headers],[Ağustos]]&_YIL),Diğer[Çek İsteğinin Başlangıç Tarihi],\"<=\"&K$4)","v":{"v":0,"d":"0.00 ₺"}},{"$f":"SUMIFS(GiderlerDökümü[Çek Tutarı],GiderlerDökümü[GM Kodu],AylıkGiderlerÖzeti[[#This Row],[GM Kodu]],GiderlerDökümü[Fatura Tarihi],\">=\"&L$3,GiderlerDökümü[Fatura Tarihi],\"<=\"&L$4)+SUMIFS(Diğer[Çek Tutarı],Diğer[GM Kodu],AylıkGiderlerÖzeti[[#This Row],[GM Kodu]],Diğer[Çek İsteğinin Başlangıç Tarihi],\">=\"&DATEVALUE(\" 1 \"&AylıkGiderlerÖzeti[[#Headers],[Eylül]]&_YIL),Diğer[Çek İsteğinin Başlangıç Tarihi],\"<=\"&L$4)","v":{"v":0,"d":"0.00 ₺"}},{"$f":"SUMIFS(GiderlerDökümü[Çek Tutarı],GiderlerDökümü[GM Kodu],AylıkGiderlerÖzeti[[#This Row],[GM Kodu]],GiderlerDökümü[Fatura Tarihi],\">=\"&M$3,GiderlerDökümü[Fatura Tarihi],\"<=\"&M$4)+SUMIFS(Diğer[Çek Tutarı],Diğer[GM Kodu],AylıkGiderlerÖzeti[[#This Row],[GM Kodu]],Diğer[Çek İsteğinin Başlangıç Tarihi],\">=\"&DATEVALUE(\" 1 \"&AylıkGiderlerÖzeti[[#Headers],[Ekim]]&_YIL),Diğer[Çek İsteğinin Başlangıç Tarihi],\"<=\"&M$4)","v":{"v":0,"d":"0.00 ₺"}},{"$f":"SUMIFS(GiderlerDökümü[Çek Tutarı],GiderlerDökümü[GM Kodu],AylıkGiderlerÖzeti[[#This Row],[GM Kodu]],GiderlerDökümü[Fatura Tarihi],\">=\"&N$3,GiderlerDökümü[Fatura Tarihi],\"<=\"&N$4)+SUMIFS(Diğer[Çek Tutarı],Diğer[GM Kodu],AylıkGiderlerÖzeti[[#This Row],[GM Kodu]],Diğer[Çek İsteğinin Başlangıç Tarihi],\">=\"&DATEVALUE(\" 1 \"&AylıkGiderlerÖzeti[[#Headers],[Kasım]]&_YIL),Diğer[Çek İsteğinin Başlangıç Tarihi],\"<=\"&N$4)","v":{"v":0,"d":"0.00 ₺"}},{"$f":"SUMIFS(GiderlerDökümü[Çek Tutarı],GiderlerDökümü[GM Kodu],AylıkGiderlerÖzeti[[#This Row],[GM Kodu]],GiderlerDökümü[Fatura Tarihi],\">=\"&O$3,GiderlerDökümü[Fatura Tarihi],\"<=\"&O$4)+SUMIFS(Diğer[Çek Tutarı],Diğer[GM Kodu],AylıkGiderlerÖzeti[[#This Row],[GM Kodu]],Diğer[Çek İsteğinin Başlangıç Tarihi],\">=\"&DATEVALUE(\" 1 \"&AylıkGiderlerÖzeti[[#Headers],[Aralık]]&_YIL),Diğer[Çek İsteğinin Başlangıç Tarihi],\"<=\"&O$4)","v":{"v":0,"d":"0.00 ₺"}},{"$f":"SUM(AylıkGiderlerÖzeti[[#This Row],[Ocak]:[Aralık]])","v":{"v":0,"d":"0.00 ₺"}}]
[null,9000,"Bina Maliyetleri",{"$f":"SUMIFS(GiderlerDökümü[Çek Tutarı],GiderlerDökümü[GM Kodu],AylıkGiderlerÖzeti[[#This Row],[GM Kodu]],GiderlerDökümü[Fatura Tarihi],\">=\"&D$3,GiderlerDökümü[Fatura Tarihi],\"<=\"&D$4)+SUMIFS(Diğer[Çek Tutarı],Diğer[GM Kodu],AylıkGiderlerÖzeti[[#This Row],[GM Kodu]],Diğer[Çek İsteğinin Başlangıç Tarihi],\">=\"&DATEVALUE(\" 1 \"&AylıkGiderlerÖzeti[[#Headers],[Ocak]]&_YIL),Diğer[Çek İsteğinin Başlangıç Tarihi],\"<=\"&D$4)","v":{"v":0,"d":"0.00 ₺"}},{"$f":"SUMIFS(GiderlerDökümü[Çek Tutarı],GiderlerDökümü[GM Kodu],AylıkGiderlerÖzeti[[#This Row],[GM Kodu]],GiderlerDökümü[Fatura Tarihi],\">=\"&E$3,GiderlerDökümü[Fatura Tarihi],\"<=\"&E$4)+SUMIFS(Diğer[Çek Tutarı],Diğer[GM Kodu],AylıkGiderlerÖzeti[[#This Row],[GM Kodu]],Diğer[Çek İsteğinin Başlangıç Tarihi],\">=\"&DATEVALUE(\" 1 \"&AylıkGiderlerÖzeti[[#Headers],[Şubat]]&_YIL),Diğer[Çek İsteğinin Başlangıç Tarihi],\"<=\"&E$4)","v":{"v":0,"d":"0.00 ₺"}},{"$f":"SUMIFS(GiderlerDökümü[Çek Tutarı],GiderlerDökümü[GM Kodu],AylıkGiderlerÖzeti[[#This Row],[GM Kodu]],GiderlerDökümü[Fatura Tarihi],\">=\"&F$3,GiderlerDökümü[Fatura Tarihi],\"<=\"&F$4)+SUMIFS(Diğer[Çek Tutarı],Diğer[GM Kodu],AylıkGiderlerÖzeti[[#This Row],[GM Kodu]],Diğer[Çek İsteğinin Başlangıç Tarihi],\">=\"&DATEVALUE(\" 1 \"&AylıkGiderlerÖzeti[[#Headers],[Mart]]&_YIL),Diğer[Çek İsteğinin Başlangıç Tarihi],\"<=\"&F$4)","v":{"v":0,"d":"0.00 ₺"}},{"$f":"SUMIFS(GiderlerDökümü[Çek Tutarı],GiderlerDökümü[GM Kodu],AylıkGiderlerÖzeti[[#This Row],[GM Kodu]],GiderlerDökümü[Fatura Tarihi],\">=\"&G$3,GiderlerDökümü[Fatura Tarihi],\"<=\"&G$4)+SUMIFS(Diğer[Çek Tutarı],Diğer[GM Kodu],AylıkGiderlerÖzeti[[#This Row],[GM Kodu]],Diğer[Çek İsteğinin Başlangıç Tarihi],\">=\"&DATEVALUE(\" 1 \"&AylıkGiderlerÖzeti[[#Headers],[Nisan]]&_YIL),Diğer[Çek İsteğinin Başlangıç Tarihi],\"<=\"&G$4)","v":{"v":0,"d":"0.00 ₺"}},{"$f":"SUMIFS(GiderlerDökümü[Çek Tutarı],GiderlerDökümü[GM Kodu],AylıkGiderlerÖzeti[[#This Row],[GM Kodu]],GiderlerDökümü[Fatura Tarihi],\">=\"&H$3,GiderlerDökümü[Fatura Tarihi],\"<=\"&H$4)+SUMIFS(Diğer[Çek Tutarı],Diğer[GM Kodu],AylıkGiderlerÖzeti[[#This Row],[GM Kodu]],Diğer[Çek İsteğinin Başlangıç Tarihi],\">=\"&DATEVALUE(\" 1 \"&AylıkGiderlerÖzeti[[#Headers],[Mayıs]]&_YIL),Diğer[Çek İsteğinin Başlangıç Tarihi],\"<=\"&H$4)","v":{"v":0,"d":"0.00 ₺"}},{"$f":"SUMIFS(GiderlerDökümü[Çek Tutarı],GiderlerDökümü[GM Kodu],AylıkGiderlerÖzeti[[#This Row],[GM Kodu]],GiderlerDökümü[Fatura Tarihi],\">=\"&I$3,GiderlerDökümü[Fatura Tarihi],\"<=\"&I$4)+SUMIFS(Diğer[Çek Tutarı],Diğer[GM Kodu],AylıkGiderlerÖzeti[[#This Row],[GM Kodu]],Diğer[Çek İsteğinin Başlangıç Tarihi],\">=\"&DATEVALUE(\" 1 \"&AylıkGiderlerÖzeti[[#Headers],[Haziran]]&_YIL),Diğer[Çek İsteğinin Başlangıç Tarihi],\"<=\"&I$4)","v":{"v":0,"d":"0.00 ₺"}},{"$f":"SUMIFS(GiderlerDökümü[Çek Tutarı],GiderlerDökümü[GM Kodu],AylıkGiderlerÖzeti[[#This Row],[GM Kodu]],GiderlerDökümü[Fatura Tarihi],\">=\"&J$3,GiderlerDökümü[Fatura Tarihi],\"<=\"&J$4)+SUMIFS(Diğer[Çek Tutarı],Diğer[GM Kodu],AylıkGiderlerÖzeti[[#This Row],[GM Kodu]],Diğer[Çek İsteğinin Başlangıç Tarihi],\">=\"&DATEVALUE(\" 1 \"&AylıkGiderlerÖzeti[[#Headers],[Temmuz]]&_YIL),Diğer[Çek İsteğinin Başlangıç Tarihi],\"<=\"&J$4)","v":{"v":0,"d":"0.00 ₺"}},{"$f":"SUMIFS(GiderlerDökümü[Çek Tutarı],GiderlerDökümü[GM Kodu],AylıkGiderlerÖzeti[[#This Row],[GM Kodu]],GiderlerDökümü[Fatura Tarihi],\">=\"&K$3,GiderlerDökümü[Fatura Tarihi],\"<=\"&K$4)+SUMIFS(Diğer[Çek Tutarı],Diğer[GM Kodu],AylıkGiderlerÖzeti[[#This Row],[GM Kodu]],Diğer[Çek İsteğinin Başlangıç Tarihi],\">=\"&DATEVALUE(\" 1 \"&AylıkGiderlerÖzeti[[#Headers],[Ağustos]]&_YIL),Diğer[Çek İsteğinin Başlangıç Tarihi],\"<=\"&K$4)","v":{"v":0,"d":"0.00 ₺"}},{"$f":"SUMIFS(GiderlerDökümü[Çek Tutarı],GiderlerDökümü[GM Kodu],AylıkGiderlerÖzeti[[#This Row],[GM Kodu]],GiderlerDökümü[Fatura Tarihi],\">=\"&L$3,GiderlerDökümü[Fatura Tarihi],\"<=\"&L$4)+SUMIFS(Diğer[Çek Tutarı],Diğer[GM Kodu],AylıkGiderlerÖzeti[[#This Row],[GM Kodu]],Diğer[Çek İsteğinin Başlangıç Tarihi],\">=\"&DATEVALUE(\" 1 \"&AylıkGiderlerÖzeti[[#Headers],[Eylül]]&_YIL),Diğer[Çek İsteğinin Başlangıç Tarihi],\"<=\"&L$4)","v":{"v":0,"d":"0.00 ₺"}},{"$f":"SUMIFS(GiderlerDökümü[Çek Tutarı],GiderlerDökümü[GM Kodu],AylıkGiderlerÖzeti[[#This Row],[GM Kodu]],GiderlerDökümü[Fatura Tarihi],\">=\"&M$3,GiderlerDökümü[Fatura Tarihi],\"<=\"&M$4)+SUMIFS(Diğer[Çek Tutarı],Diğer[GM Kodu],AylıkGiderlerÖzeti[[#This Row],[GM Kodu]],Diğer[Çek İsteğinin Başlangıç Tarihi],\">=\"&DATEVALUE(\" 1 \"&AylıkGiderlerÖzeti[[#Headers],[Ekim]]&_YIL),Diğer[Çek İsteğinin Başlangıç Tarihi],\"<=\"&M$4)","v":{"v":0,"d":"0.00 ₺"}},{"$f":"SUMIFS(GiderlerDökümü[Çek Tutarı],GiderlerDökümü[GM Kodu],AylıkGiderlerÖzeti[[#This Row],[GM Kodu]],GiderlerDökümü[Fatura Tarihi],\">=\"&N$3,GiderlerDökümü[Fatura Tarihi],\"<=\"&N$4)+SUMIFS(Diğer[Çek Tutarı],Diğer[GM Kodu],AylıkGiderlerÖzeti[[#This Row],[GM Kodu]],Diğer[Çek İsteğinin Başlangıç Tarihi],\">=\"&DATEVALUE(\" 1 \"&AylıkGiderlerÖzeti[[#Headers],[Kasım]]&_YIL),Diğer[Çek İsteğinin Başlangıç Tarihi],\"<=\"&N$4)","v":{"v":0,"d":"0.00 ₺"}},{"$f":"SUMIFS(GiderlerDökümü[Çek Tutarı],GiderlerDökümü[GM Kodu],AylıkGiderlerÖzeti[[#This Row],[GM Kodu]],GiderlerDökümü[Fatura Tarihi],\">=\"&O$3,GiderlerDökümü[Fatura Tarihi],\"<=\"&O$4)+SUMIFS(Diğer[Çek Tutarı],Diğer[GM Kodu],AylıkGiderlerÖzeti[[#This Row],[GM Kodu]],Diğer[Çek İsteğinin Başlangıç Tarihi],\">=\"&DATEVALUE(\" 1 \"&AylıkGiderlerÖzeti[[#Headers],[Aralık]]&_YIL),Diğer[Çek İsteğinin Başlangıç Tarihi],\"<=\"&O$4)","v":{"v":0,"d":"0.00 ₺"}},{"$f":"SUM(AylıkGiderlerÖzeti[[#This Row],[Ocak]:[Aralık]])","v":{"v":0,"d":"0.00 ₺"}}]
[null,10000,"Pazarlama",{"$f":"SUMIFS(GiderlerDökümü[Çek Tutarı],GiderlerDökümü[GM Kodu],AylıkGiderlerÖzeti[[#This Row],[GM Kodu]],GiderlerDökümü[Fatura Tarihi],\">=\"&D$3,GiderlerDökümü[Fatura Tarihi],\"<=\"&D$4)+SUMIFS(Diğer[Çek Tutarı],Diğer[GM Kodu],AylıkGiderlerÖzeti[[#This Row],[GM Kodu]],Diğer[Çek İsteğinin Başlangıç Tarihi],\">=\"&DATEVALUE(\" 1 \"&AylıkGiderlerÖzeti[[#Headers],[Ocak]]&_YIL),Diğer[Çek İsteğinin Başlangıç Tarihi],\"<=\"&D$4)","v":{"v":0,"d":"0.00 ₺"}},{"$f":"SUMIFS(GiderlerDökümü[Çek Tutarı],GiderlerDökümü[GM Kodu],AylıkGiderlerÖzeti[[#This Row],[GM Kodu]],GiderlerDökümü[Fatura Tarihi],\">=\"&E$3,GiderlerDökümü[Fatura Tarihi],\"<=\"&E$4)+SUMIFS(Diğer[Çek Tutarı],Diğer[GM Kodu],AylıkGiderlerÖzeti[[#This Row],[GM Kodu]],Diğer[Çek İsteğinin Başlangıç Tarihi],\">=\"&DATEVALUE(\" 1 \"&AylıkGiderlerÖzeti[[#Headers],[Şubat]]&_YIL),Diğer[Çek İsteğinin Başlangıç Tarihi],\"<=\"&E$4)","v":{"v":0,"d":"0.00 ₺"}},{"$f":"SUMIFS(GiderlerDökümü[Çek Tutarı],GiderlerDökümü[GM Kodu],AylıkGiderlerÖzeti[[#This Row],[GM Kodu]],GiderlerDökümü[Fatura Tarihi],\">=\"&F$3,GiderlerDökümü[Fatura Tarihi],\"<=\"&F$4)+SUMIFS(Diğer[Çek Tutarı],Diğer[GM Kodu],AylıkGiderlerÖzeti[[#This Row],[GM Kodu]],Diğer[Çek İsteğinin Başlangıç Tarihi],\">=\"&DATEVALUE(\" 1 \"&AylıkGiderlerÖzeti[[#Headers],[Mart]]&_YIL),Diğer[Çek İsteğinin Başlangıç Tarihi],\"<=\"&F$4)","v":{"v":0,"d":"0.00 ₺"}},{"$f":"SUMIFS(GiderlerDökümü[Çek Tutarı],GiderlerDökümü[GM Kodu],AylıkGiderlerÖzeti[[#This Row],[GM Kodu]],GiderlerDökümü[Fatura Tarihi],\">=\"&G$3,GiderlerDökümü[Fatura Tarihi],\"<=\"&G$4)+SUMIFS(Diğer[Çek Tutarı],Diğer[GM Kodu],AylıkGiderlerÖzeti[[#This Row],[GM Kodu]],Diğer[Çek İsteğinin Başlangıç Tarihi],\">=\"&DATEVALUE(\" 1 \"&AylıkGiderlerÖzeti[[#Headers],[Nisan]]&_YIL),Diğer[Çek İsteğinin Başlangıç Tarihi],\"<=\"&G$4)","v":{"v":0,"d":"0.00 ₺"}},{"$f":"SUMIFS(GiderlerDökümü[Çek Tutarı],GiderlerDökümü[GM Kodu],AylıkGiderlerÖzeti[[#This Row],[GM Kodu]],GiderlerDökümü[Fatura Tarihi],\">=\"&H$3,GiderlerDökümü[Fatura Tarihi],\"<=\"&H$4)+SUMIFS(Diğer[Çek Tutarı],Diğer[GM Kodu],AylıkGiderlerÖzeti[[#This Row],[GM Kodu]],Diğer[Çek İsteğinin Başlangıç Tarihi],\">=\"&DATEVALUE(\" 1 \"&AylıkGiderlerÖzeti[[#Headers],[Mayıs]]&_YIL),Diğer[Çek İsteğinin Başlangıç Tarihi],\"<=\"&H$4)","v":{"v":0,"d":"0.00 ₺"}},{"$f":"SUMIFS(GiderlerDökümü[Çek Tutarı],GiderlerDökümü[GM Kodu],AylıkGiderlerÖzeti[[#This Row],[GM Kodu]],GiderlerDökümü[Fatura Tarihi],\">=\"&I$3,GiderlerDökümü[Fatura Tarihi],\"<=\"&I$4)+SUMIFS(Diğer[Çek Tutarı],Diğer[GM Kodu],AylıkGiderlerÖzeti[[#This Row],[GM Kodu]],Diğer[Çek İsteğinin Başlangıç Tarihi],\">=\"&DATEVALUE(\" 1 \"&AylıkGiderlerÖzeti[[#Headers],[Haziran]]&_YIL),Diğer[Çek İsteğinin Başlangıç Tarihi],\"<=\"&I$4)","v":{"v":0,"d":"0.00 ₺"}},{"$f":"SUMIFS(GiderlerDökümü[Çek Tutarı],GiderlerDökümü[GM Kodu],AylıkGiderlerÖzeti[[#This Row],[GM Kodu]],GiderlerDökümü[Fatura Tarihi],\">=\"&J$3,GiderlerDökümü[Fatura Tarihi],\"<=\"&J$4)+SUMIFS(Diğer[Çek Tutarı],Diğer[GM Kodu],AylıkGiderlerÖzeti[[#This Row],[GM Kodu]],Diğer[Çek İsteğinin Başlangıç Tarihi],\">=\"&DATEVALUE(\" 1 \"&AylıkGiderlerÖzeti[[#Headers],[Temmuz]]&_YIL),Diğer[Çek İsteğinin Başlangıç Tarihi],\"<=\"&J$4)","v":{"v":0,"d":"0.00 ₺"}},{"$f":"SUMIFS(GiderlerDökümü[Çek Tutarı],GiderlerDökümü[GM Kodu],AylıkGiderlerÖzeti[[#This Row],[GM Kodu]],GiderlerDökümü[Fatura Tarihi],\">=\"&K$3,GiderlerDökümü[Fatura Tarihi],\"<=\"&K$4)+SUMIFS(Diğer[Çek Tutarı],Diğer[GM Kodu],AylıkGiderlerÖzeti[[#This Row],[GM Kodu]],Diğer[Çek İsteğinin Başlangıç Tarihi],\">=\"&DATEVALUE(\" 1 \"&AylıkGiderlerÖzeti[[#Headers],[Ağustos]]&_YIL),Diğer[Çek İsteğinin Başlangıç Tarihi],\"<=\"&K$4)","v":{"v":0,"d":"0.00 ₺"}},{"$f":"SUMIFS(GiderlerDökümü[Çek Tutarı],GiderlerDökümü[GM Kodu],AylıkGiderlerÖzeti[[#This Row],[GM Kodu]],GiderlerDökümü[Fatura Tarihi],\">=\"&L$3,GiderlerDökümü[Fatura Tarihi],\"<=\"&L$4)+SUMIFS(Diğer[Çek Tutarı],Diğer[GM Kodu],AylıkGiderlerÖzeti[[#This Row],[GM Kodu]],Diğer[Çek İsteğinin Başlangıç Tarihi],\">=\"&DATEVALUE(\" 1 \"&AylıkGiderlerÖzeti[[#Headers],[Eylül]]&_YIL),Diğer[Çek İsteğinin Başlangıç Tarihi],\"<=\"&L$4)","v":{"v":0,"d":"0.00 ₺"}},{"$f":"SUMIFS(GiderlerDökümü[Çek Tutarı],GiderlerDökümü[GM Kodu],AylıkGiderlerÖzeti[[#This Row],[GM Kodu]],GiderlerDökümü[Fatura Tarihi],\">=\"&M$3,GiderlerDökümü[Fatura Tarihi],\"<=\"&M$4)+SUMIFS(Diğer[Çek Tutarı],Diğer[GM Kodu],AylıkGiderlerÖzeti[[#This Row],[GM Kodu]],Diğer[Çek İsteğinin Başlangıç Tarihi],\">=\"&DATEVALUE(\" 1 \"&AylıkGiderlerÖzeti[[#Headers],[Ekim]]&_YIL),Diğer[Çek İsteğinin Başlangıç Tarihi],\"<=\"&M$4)","v":{"v":0,"d":"0.00 ₺"}},{"$f":"SUMIFS(GiderlerDökümü[Çek Tutarı],GiderlerDökümü[GM Kodu],AylıkGiderlerÖzeti[[#This Row],[GM Kodu]],GiderlerDökümü[Fatura Tarihi],\">=\"&N$3,GiderlerDökümü[Fatura Tarihi],\"<=\"&N$4)+SUMIFS(Diğer[Çek Tutarı],Diğer[GM Kodu],AylıkGiderlerÖzeti[[#This Row],[GM Kodu]],Diğer[Çek İsteğinin Başlangıç Tarihi],\">=\"&DATEVALUE(\" 1 \"&AylıkGiderlerÖzeti[[#Headers],[Kasım]]&_YIL),Diğer[Çek İsteğinin Başlangıç Tarihi],\"<=\"&N$4)","v":{"v":0,"d":"0.00 ₺"}},{"$f":"SUMIFS(GiderlerDökümü[Çek Tutarı],GiderlerDökümü[GM Kodu],AylıkGiderlerÖzeti[[#This Row],[GM Kodu]],GiderlerDökümü[Fatura Tarihi],\">=\"&O$3,GiderlerDökümü[Fatura Tarihi],\"<=\"&O$4)+SUMIFS(Diğer[Çek Tutarı],Diğer[GM Kodu],AylıkGiderlerÖzeti[[#This Row],[GM Kodu]],Diğer[Çek İsteğinin Başlangıç Tarihi],\">=\"&DATEVALUE(\" 1 \"&AylıkGiderlerÖzeti[[#Headers],[Aralık]]&_YIL),Diğer[Çek İsteğinin Başlangıç Tarihi],\"<=\"&O$4)","v":{"v":0,"d":"0.00 ₺"}},{"$f":"SUM(AylıkGiderlerÖzeti[[#This Row],[Ocak]:[Aralık]])","v":{"v":0,"d":"0.00 ₺"}}]
[null,11000,"Hayır İşleri",{"$f":"SUMIFS(GiderlerDökümü[Çek Tutarı],GiderlerDökümü[GM Kodu],AylıkGiderlerÖzeti[[#This Row],[GM Kodu]],GiderlerDökümü[Fatura Tarihi],\">=\"&D$3,GiderlerDökümü[Fatura Tarihi],\"<=\"&D$4)+SUMIFS(Diğer[Çek Tutarı],Diğer[GM Kodu],AylıkGiderlerÖzeti[[#This Row],[GM Kodu]],Diğer[Çek İsteğinin Başlangıç Tarihi],\">=\"&DATEVALUE(\" 1 \"&AylıkGiderlerÖzeti[[#Headers],[Ocak]]&_YIL),Diğer[Çek İsteğinin Başlangıç Tarihi],\"<=\"&D$4)","v":{"v":0,"d":"0.00 ₺"}},{"$f":"SUMIFS(GiderlerDökümü[Çek Tutarı],GiderlerDökümü[GM Kodu],AylıkGiderlerÖzeti[[#This Row],[GM Kodu]],GiderlerDökümü[Fatura Tarihi],\">=\"&E$3,GiderlerDökümü[Fatura Tarihi],\"<=\"&E$4)+SUMIFS(Diğer[Çek Tutarı],Diğer[GM Kodu],AylıkGiderlerÖzeti[[#This Row],[GM Kodu]],Diğer[Çek İsteğinin Başlangıç Tarihi],\">=\"&DATEVALUE(\" 1 \"&AylıkGiderlerÖzeti[[#Headers],[Şubat]]&_YIL),Diğer[Çek İsteğinin Başlangıç Tarihi],\"<=\"&E$4)","v":{"v":0,"d":"0.00 ₺"}},{"$f":"SUMIFS(GiderlerDökümü[Çek Tutarı],GiderlerDökümü[GM Kodu],AylıkGiderlerÖzeti[[#This Row],[GM Kodu]],GiderlerDökümü[Fatura Tarihi],\">=\"&F$3,GiderlerDökümü[Fatura Tarihi],\"<=\"&F$4)+SUMIFS(Diğer[Çek Tutarı],Diğer[GM Kodu],AylıkGiderlerÖzeti[[#This Row],[GM Kodu]],Diğer[Çek İsteğinin Başlangıç Tarihi],\">=\"&DATEVALUE(\" 1 \"&AylıkGiderlerÖzeti[[#Headers],[Mart]]&_YIL),Diğer[Çek İsteğinin Başlangıç Tarihi],\"<=\"&F$4)","v":{"v":0,"d":"0.00 ₺"}},{"$f":"SUMIFS(GiderlerDökümü[Çek Tutarı],GiderlerDökümü[GM Kodu],AylıkGiderlerÖzeti[[#This Row],[GM Kodu]],GiderlerDökümü[Fatura Tarihi],\">=\"&G$3,GiderlerDökümü[Fatura Tarihi],\"<=\"&G$4)+SUMIFS(Diğer[Çek Tutarı],Diğer[GM Kodu],AylıkGiderlerÖzeti[[#This Row],[GM Kodu]],Diğer[Çek İsteğinin Başlangıç Tarihi],\">=\"&DATEVALUE(\" 1 \"&AylıkGiderlerÖzeti[[#Headers],[Nisan]]&_YIL),Diğer[Çek İsteğinin Başlangıç Tarihi],\"<=\"&G$4)","v":{"v":0,"d":"0.00 ₺"}},{"$f":"SUMIFS(GiderlerDökümü[Çek Tutarı],GiderlerDökümü[GM Kodu],AylıkGiderlerÖzeti[[#This Row],[GM Kodu]],GiderlerDökümü[Fatura Tarihi],\">=\"&H$3,GiderlerDökümü[Fatura Tarihi],\"<=\"&H$4)+SUMIFS(Diğer[Çek Tutarı],Diğer[GM Kodu],AylıkGiderlerÖzeti[[#This Row],[GM Kodu]],Diğer[Çek İsteğinin Başlangıç Tarihi],\">=\"&DATEVALUE(\" 1 \"&AylıkGiderlerÖzeti[[#Headers],[Mayıs]]&_YIL),Diğer[Çek İsteğinin Başlangıç Tarihi],\"<=\"&H$4)","v":{"v":0,"d":"0.00 ₺"}},{"$f":"SUMIFS(GiderlerDökümü[Çek Tutarı],GiderlerDökümü[GM Kodu],AylıkGiderlerÖzeti[[#This Row],[GM Kodu]],GiderlerDökümü[Fatura Tarihi],\">=\"&I$3,GiderlerDökümü[Fatura Tarihi],\"<=\"&I$4)+SUMIFS(Diğer[Çek Tutarı],Diğer[GM Kodu],AylıkGiderlerÖzeti[[#This Row],[GM Kodu]],Diğer[Çek İsteğinin Başlangıç Tarihi],\">=\"&DATEVALUE(\" 1 \"&AylıkGiderlerÖzeti[[#Headers],[Haziran]]&_YIL),Diğer[Çek İsteğinin Başlangıç Tarihi],\"<=\"&I$4)","v":{"v":0,"d":"0.00 ₺"}},{"$f":"SUMIFS(GiderlerDökümü[Çek Tutarı],GiderlerDökümü[GM Kodu],AylıkGiderlerÖzeti[[#This Row],[GM Kodu]],GiderlerDökümü[Fatura Tarihi],\">=\"&J$3,GiderlerDökümü[Fatura Tarihi],\"<=\"&J$4)+SUMIFS(Diğer[Çek Tutarı],Diğer[GM Kodu],AylıkGiderlerÖzeti[[#This Row],[GM Kodu]],Diğer[Çek İsteğinin Başlangıç Tarihi],\">=\"&DATEVALUE(\" 1 \"&AylıkGiderlerÖzeti[[#Headers],[Temmuz]]&_YIL),Diğer[Çek İsteğinin Başlangıç Tarihi],\"<=\"&J$4)","v":{"v":0,"d":"0.00 ₺"}},{"$f":"SUMIFS(GiderlerDökümü[Çek Tutarı],GiderlerDökümü[GM Kodu],AylıkGiderlerÖzeti[[#This Row],[GM Kodu]],GiderlerDökümü[Fatura Tarihi],\">=\"&K$3,GiderlerDökümü[Fatura Tarihi],\"<=\"&K$4)+SUMIFS(Diğer[Çek Tutarı],Diğer[GM Kodu],AylıkGiderlerÖzeti[[#This Row],[GM Kodu]],Diğer[Çek İsteğinin Başlangıç Tarihi],\">=\"&DATEVALUE(\" 1 \"&AylıkGiderlerÖzeti[[#Headers],[Ağustos]]&_YIL),Diğer[Çek İsteğinin Başlangıç Tarihi],\"<=\"&K$4)","v":{"v":0,"d":"0.00 ₺"}},{"$f":"SUMIFS(GiderlerDökümü[Çek Tutarı],GiderlerDökümü[GM Kodu],AylıkGiderlerÖzeti[[#This Row],[GM Kodu]],GiderlerDökümü[Fatura Tarihi],\">=\"&L$3,GiderlerDökümü[Fatura Tarihi],\"<=\"&L$4)+SUMIFS(Diğer[Çek Tutarı],Diğer[GM Kodu],AylıkGiderlerÖzeti[[#This Row],[GM Kodu]],Diğer[Çek İsteğinin Başlangıç Tarihi],\">=\"&DATEVALUE(\" 1 \"&AylıkGiderlerÖzeti[[#Headers],[Eylül]]&_YIL),Diğer[Çek İsteğinin Başlangıç Tarihi],\"<=\"&L$4)","v":{"v":0,"d":"0.00 ₺"}},{"$f":"SUMIFS(GiderlerDökümü[Çek Tutarı],GiderlerDökümü[GM Kodu],AylıkGiderlerÖzeti[[#This Row],[GM Kodu]],GiderlerDökümü[Fatura Tarihi],\">=\"&M$3,GiderlerDökümü[Fatura Tarihi],\"<=\"&M$4)+SUMIFS(Diğer[Çek Tutarı],Diğer[GM Kodu],AylıkGiderlerÖzeti[[#This Row],[GM Kodu]],Diğer[Çek İsteğinin Başlangıç Tarihi],\">=\"&DATEVALUE(\" 1 \"&AylıkGiderlerÖzeti[[#Headers],[Ekim]]&_YIL),Diğer[Çek İsteğinin Başlangıç Tarihi],\"<=\"&M$4)","v":{"v":0,"d":"0.00 ₺"}},{"$f":"SUMIFS(GiderlerDökümü[Çek Tutarı],GiderlerDökümü[GM Kodu],AylıkGiderlerÖzeti[[#This Row],[GM Kodu]],GiderlerDökümü[Fatura Tarihi],\">=\"&N$3,GiderlerDökümü[Fatura Tarihi],\"<=\"&N$4)+SUMIFS(Diğer[Çek Tutarı],Diğer[GM Kodu],AylıkGiderlerÖzeti[[#This Row],[GM Kodu]],Diğer[Çek İsteğinin Başlangıç Tarihi],\">=\"&DATEVALUE(\" 1 \"&AylıkGiderlerÖzeti[[#Headers],[Kasım]]&_YIL),Diğer[Çek İsteğinin Başlangıç Tarihi],\"<=\"&N$4)","v":{"v":0,"d":"0.00 ₺"}},{"$f":"SUMIFS(GiderlerDökümü[Çek Tutarı],GiderlerDökümü[GM Kodu],AylıkGiderlerÖzeti[[#This Row],[GM Kodu]],GiderlerDökümü[Fatura Tarihi],\">=\"&O$3,GiderlerDökümü[Fatura Tarihi],\"<=\"&O$4)+SUMIFS(Diğer[Çek Tutarı],Diğer[GM Kodu],AylıkGiderlerÖzeti[[#This Row],[GM Kodu]],Diğer[Çek İsteğinin Başlangıç Tarihi],\">=\"&DATEVALUE(\" 1 \"&AylıkGiderlerÖzeti[[#Headers],[Aralık]]&_YIL),Diğer[Çek İsteğinin Başlangıç Tarihi],\"<=\"&O$4)","v":{"v":0,"d":"0.00 ₺"}},{"$f":"SUM(AylıkGiderlerÖzeti[[#This Row],[Ocak]:[Aralık]])","v":{"v":0,"d":"0.00 ₺"}}]
[null,12000,"Sponsorluklar",{"$f":"SUMIFS(GiderlerDökümü[Çek Tutarı],GiderlerDökümü[GM Kodu],AylıkGiderlerÖzeti[[#This Row],[GM Kodu]],GiderlerDökümü[Fatura Tarihi],\">=\"&D$3,GiderlerDökümü[Fatura Tarihi],\"<=\"&D$4)+SUMIFS(Diğer[Çek Tutarı],Diğer[GM Kodu],AylıkGiderlerÖzeti[[#This Row],[GM Kodu]],Diğer[Çek İsteğinin Başlangıç Tarihi],\">=\"&DATEVALUE(\" 1 \"&AylıkGiderlerÖzeti[[#Headers],[Ocak]]&_YIL),Diğer[Çek İsteğinin Başlangıç Tarihi],\"<=\"&D$4)","v":{"v":0,"d":"0.00 ₺"}},{"$f":"SUMIFS(GiderlerDökümü[Çek Tutarı],GiderlerDökümü[GM Kodu],AylıkGiderlerÖzeti[[#This Row],[GM Kodu]],GiderlerDökümü[Fatura Tarihi],\">=\"&E$3,GiderlerDökümü[Fatura Tarihi],\"<=\"&E$4)+SUMIFS(Diğer[Çek Tutarı],Diğer[GM Kodu],AylıkGiderlerÖzeti[[#This Row],[GM Kodu]],Diğer[Çek İsteğinin Başlangıç Tarihi],\">=\"&DATEVALUE(\" 1 \"&AylıkGiderlerÖzeti[[#Headers],[Şubat]]&_YIL),Diğer[Çek İsteğinin Başlangıç Tarihi],\"<=\"&E$4)","v":{"v":0,"d":"0.00 ₺"}},{"$f":"SUMIFS(GiderlerDökümü[Çek Tutarı],GiderlerDökümü[GM Kodu],AylıkGiderlerÖzeti[[#This Row],[GM Kodu]],GiderlerDökümü[Fatura Tarihi],\">=\"&F$3,GiderlerDökümü[Fatura Tarihi],\"<=\"&F$4)+SUMIFS(Diğer[Çek Tutarı],Diğer[GM Kodu],AylıkGiderlerÖzeti[[#This Row],[GM Kodu]],Diğer[Çek İsteğinin Başlangıç Tarihi],\">=\"&DATEVALUE(\" 1 \"&AylıkGiderlerÖzeti[[#Headers],[Mart]]&_YIL),Diğer[Çek İsteğinin Başlangıç Tarihi],\"<=\"&F$4)","v":{"v":0,"d":"0.00 ₺"}},{"$f":"SUMIFS(GiderlerDökümü[Çek Tutarı],GiderlerDökümü[GM Kodu],AylıkGiderlerÖzeti[[#This Row],[GM Kodu]],GiderlerDökümü[Fatura Tarihi],\">=\"&G$3,GiderlerDökümü[Fatura Tarihi],\"<=\"&G$4)+SUMIFS(Diğer[Çek Tutarı],Diğer[GM Kodu],AylıkGiderlerÖzeti[[#This Row],[GM Kodu]],Diğer[Çek İsteğinin Başlangıç Tarihi],\">=\"&DATEVALUE(\" 1 \"&AylıkGiderlerÖzeti[[#Headers],[Nisan]]&_YIL),Diğer[Çek İsteğinin Başlangıç Tarihi],\"<=\"&G$4)","v":{"v":0,"d":"0.00 ₺"}},{"$f":"SUMIFS(GiderlerDökümü[Çek Tutarı],GiderlerDökümü[GM Kodu],AylıkGiderlerÖzeti[[#This Row],[GM Kodu]],GiderlerDökümü[Fatura Tarihi],\">=\"&H$3,GiderlerDökümü[Fatura Tarihi],\"<=\"&H$4)+SUMIFS(Diğer[Çek Tutarı],Diğer[GM Kodu],AylıkGiderlerÖzeti[[#This Row],[GM Kodu]],Diğer[Çek İsteğinin Başlangıç Tarihi],\">=\"&DATEVALUE(\" 1 \"&AylıkGiderlerÖzeti[[#Headers],[Mayıs]]&_YIL),Diğer[Çek İsteğinin Başlangıç Tarihi],\"<=\"&H$4)","v":{"v":0,"d":"0.00 ₺"}},{"$f":"SUMIFS(GiderlerDökümü[Çek Tutarı],GiderlerDökümü[GM Kodu],AylıkGiderlerÖzeti[[#This Row],[GM Kodu]],GiderlerDökümü[Fatura Tarihi],\">=\"&I$3,GiderlerDökümü[Fatura Tarihi],\"<=\"&I$4)+SUMIFS(Diğer[Çek Tutarı],Diğer[GM Kodu],AylıkGiderlerÖzeti[[#This Row],[GM Kodu]],Diğer[Çek İsteğinin Başlangıç Tarihi],\">=\"&DATEVALUE(\" 1 \"&AylıkGiderlerÖzeti[[#Headers],[Haziran]]&_YIL),Diğer[Çek İsteğinin Başlangıç Tarihi],\"<=\"&I$4)","v":{"v":0,"d":"0.00 ₺"}},{"$f":"SUMIFS(GiderlerDökümü[Çek Tutarı],GiderlerDökümü[GM Kodu],AylıkGiderlerÖzeti[[#This Row],[GM Kodu]],GiderlerDökümü[Fatura Tarihi],\">=\"&J$3,GiderlerDökümü[Fatura Tarihi],\"<=\"&J$4)+SUMIFS(Diğer[Çek Tutarı],Diğer[GM Kodu],AylıkGiderlerÖzeti[[#This Row],[GM Kodu]],Diğer[Çek İsteğinin Başlangıç Tarihi],\">=\"&DATEVALUE(\" 1 \"&AylıkGiderlerÖzeti[[#Headers],[Temmuz]]&_YIL),Diğer[Çek İsteğinin Başlangıç Tarihi],\"<=\"&J$4)","v":{"v":0,"d":"0.00 ₺"}},{"$f":"SUMIFS(GiderlerDökümü[Çek Tutarı],GiderlerDökümü[GM Kodu],AylıkGiderlerÖzeti[[#This Row],[GM Kodu]],GiderlerDökümü[Fatura Tarihi],\">=\"&K$3,GiderlerDökümü[Fatura Tarihi],\"<=\"&K$4)+SUMIFS(Diğer[Çek Tutarı],Diğer[GM Kodu],AylıkGiderlerÖzeti[[#This Row],[GM Kodu]],Diğer[Çek İsteğinin Başlangıç Tarihi],\">=\"&DATEVALUE(\" 1 \"&AylıkGiderlerÖzeti[[#Headers],[Ağustos]]&_YIL),Diğer[Çek İsteğinin Başlangıç Tarihi],\"<=\"&K$4)","v":{"v":0,"d":"0.00 ₺"}},{"$f":"SUMIFS(GiderlerDökümü[Çek Tutarı],GiderlerDökümü[GM Kodu],AylıkGiderlerÖzeti[[#This Row],[GM Kodu]],GiderlerDökümü[Fatura Tarihi],\">=\"&L$3,GiderlerDökümü[Fatura Tarihi],\"<=\"&L$4)+SUMIFS(Diğer[Çek Tutarı],Diğer[GM Kodu],AylıkGiderlerÖzeti[[#This Row],[GM Kodu]],Diğer[Çek İsteğinin Başlangıç Tarihi],\">=\"&DATEVALUE(\" 1 \"&AylıkGiderlerÖzeti[[#Headers],[Eylül]]&_YIL),Diğer[Çek İsteğinin Başlangıç Tarihi],\"<=\"&L$4)","v":{"v":0,"d":"0.00 ₺"}},{"$f":"SUMIFS(GiderlerDökümü[Çek Tutarı],GiderlerDökümü[GM Kodu],AylıkGiderlerÖzeti[[#This Row],[GM Kodu]],GiderlerDökümü[Fatura Tarihi],\">=\"&M$3,GiderlerDökümü[Fatura Tarihi],\"<=\"&M$4)+SUMIFS(Diğer[Çek Tutarı],Diğer[GM Kodu],AylıkGiderlerÖzeti[[#This Row],[GM Kodu]],Diğer[Çek İsteğinin Başlangıç Tarihi],\">=\"&DATEVALUE(\" 1 \"&AylıkGiderlerÖzeti[[#Headers],[Ekim]]&_YIL),Diğer[Çek İsteğinin Başlangıç Tarihi],\"<=\"&M$4)","v":{"v":0,"d":"0.00 ₺"}},{"$f":"SUMIFS(GiderlerDökümü[Çek Tutarı],GiderlerDökümü[GM Kodu],AylıkGiderlerÖzeti[[#This Row],[GM Kodu]],GiderlerDökümü[Fatura Tarihi],\">=\"&N$3,GiderlerDökümü[Fatura Tarihi],\"<=\"&N$4)+SUMIFS(Diğer[Çek Tutarı],Diğer[GM Kodu],AylıkGiderlerÖzeti[[#This Row],[GM Kodu]],Diğer[Çek İsteğinin Başlangıç Tarihi],\">=\"&DATEVALUE(\" 1 \"&AylıkGiderlerÖzeti[[#Headers],[Kasım]]&_YIL),Diğer[Çek İsteğinin Başlangıç Tarihi],\"<=\"&N$4)","v":{"v":0,"d":"0.00 ₺"}},{"$f":"SUMIFS(GiderlerDökümü[Çek Tutarı],GiderlerDökümü[GM Kodu],AylıkGiderlerÖzeti[[#This Row],[GM Kodu]],GiderlerDökümü[Fatura Tarihi],\">=\"&O$3,GiderlerDökümü[Fatura Tarihi],\"<=\"&O$4)+SUMIFS(Diğer[Çek Tutarı],Diğer[GM Kodu],AylıkGiderlerÖzeti[[#This Row],[GM Kodu]],Diğer[Çek İsteğinin Başlangıç Tarihi],\">=\"&DATEVALUE(\" 1 \"&AylıkGiderlerÖzeti[[#Headers],[Aralık]]&_YIL),Diğer[Çek İsteğinin Başlangıç Tarihi],\"<=\"&O$4)","v":{"v":0,"d":"0.00 ₺"}},{"$f":"SUM(AylıkGiderlerÖzeti[[#This Row],[Ocak]:[Aralık]])","v":{"v":0,"d":"0.00 ₺"}}]
[null,"Toplam",null,{"$f":"SUBTOTAL(109,AylıkGiderlerÖzeti[Ocak])","v":{"v":0,"d":"0.00 ₺"}},{"$f":"SUBTOTAL(109,AylıkGiderlerÖzeti[Şubat])","v":{"v":0,"d":"0.00 ₺"}},{"$f":"SUBTOTAL(109,AylıkGiderlerÖzeti[Mart])","v":{"v":0,"d":"0.00 ₺"}},{"$f":"SUBTOTAL(109,AylıkGiderlerÖzeti[Nisan])","v":{"v":0,"d":"0.00 ₺"}},{"$f":"SUBTOTAL(109,AylıkGiderlerÖzeti[Mayıs])","v":{"v":0,"d":"0.00 ₺"}},{"$f":"SUBTOTAL(109,AylıkGiderlerÖzeti[Haziran])","v":{"v":0,"d":"0.00 ₺"}},{"$f":"SUBTOTAL(109,AylıkGiderlerÖzeti[Temmuz])","v":{"v":0,"d":"0.00 ₺"}},{"$f":"SUBTOTAL(109,AylıkGiderlerÖzeti[Ağustos])","v":{"v":0,"d":"0.00 ₺"}},{"$f":"SUBTOTAL(109,AylıkGiderlerÖzeti[Eylül])","v":{"v":0,"d":"0.00 ₺"}},{"$f":"SUBTOTAL(109,AylıkGiderlerÖzeti[Ekim])","v":{"v":0,"d":"0.00 ₺"}},{"$f":"SUBTOTAL(109,AylıkGiderlerÖzeti[Kasım])","v":{"v":0,"d":"0.00 ₺"}},{"$f":"SUBTOTAL(109,AylıkGiderlerÖzeti[Aralık])","v":{"v":0,"d":"0.00 ₺"}},{"$f":"SUBTOTAL(109,AylıkGiderlerÖzeti[Toplam])","v":{"v":0,"d":"0.00 ₺"}}]

{"sheet":"GİDER DÖKÜMÜ","index":2,"n_rows":6,"n_cols":10,"rows_kept":6,"merged":[[1,1,1,9],[2,1,2,5],[2,6,2,9]]}
[]
[null,"GİDER DÖKÜMÜ"]
[]
[null,"GM Kodu","Fatura Tarihi","Fatura No","İsteyen:","Çek Tutarı","Alacaklı","Çek Kullanımı","Dağıtım Yöntemi","Kayıt Tarihi"]
[null,1000,"Tarih",100,"Ahmet Demir",{"v":750.75,"d":"750.75 ₺"},"Consolidated Messenger ","Posta Göndericisi","Posta","Tarih"]
[null,7000,"Tarih",101,"Recep Özkan",{"v":2500,"d":"2,500.00 ₺"},"A. Datum Corporation ","2 masaüstü bilgisayar","Kredi","Tarih"]

{"sheet":"HAYIR İŞLERİ VE SPONSORLUKLAR","index":3,"n_rows":6,"n_cols":12,"rows_kept":6,"merged":[[1,1,1,11],[2,1,2,5],[2,6,2,11]]}
[]
[null,"HAYIR İŞLERİ VE SPONSORLUKLAR"]
[]
[null,"GM Kodu","Çek İsteğinin Başlangıç Tarihi","İsteyen:","Çek Tutarı","Geçen Yılın Katılımı","Alacaklı","Kullanıldığı Alan:","İmzalayan:","Kategori","Dağıtım Yöntemi","Kayıt Tarihi"]
[null,12000,"Tarih","Sultan M. Özdemir",{"v":1000,"d":"1,000.00 ₺"},{"v":12,"d":"12.00 ₺"},"Güzel Sanatlar Okulu ","Burslar","Demet Acar","Sanat","Çek","Tarih"]
[null,11000,"Tarih","Sultan M. Özdemir",{"v":2500,"d":"2,500.00 ₺"},{"v":0,"d":"0.00 ₺"},"WingTip Toys ","Topluluk","Şerife Elmas","Topluluk","Çek","Tarih"]